Workbook

Sheet PRC model
A1: PRC CALIBRATION MODEL FOR PDMS SAMPLER
A2: Shen and Reible (2018)
A3: Version 1.4
A4: 2018-07-18
A6: Parameters | B6: Symbol | C6: Value | D6: Unit
A7: Inner radius | B7: Li | C7: 0.02485 | D7: cm
A8: Outer radius | B8: Lo | C8: 0.02835 | D8: cm
A9: Sampling time | B9: t | C9: 30 | D9: days
A11: Number of PRCs | B11: 6
A12: PRC # | B12: =PRCNumber(1,$B$11) -> 1 | C12: =PRCNumber(2,$B$11) -> 2 | D12: =PRCNumber(3,$B$11) -> 3 | E12: =PRCNumber(4,$B$11) -> 4 | F12: =PRCNumber(5,$B$11) -> 5 | G12: =PRCNumber(6,$B$11) -> 6 | H12: =PRCNumber(7,$B$11) ->  | I12: =PRCNumber(8,$B$11) ->  | J12: =PRCNumber(9,$B$11) ->  | K12: =PRCNumber(10,$B$11) ->  | L12: =PRCNumber(11,$B$11) ->  | M12: =PRCNumber(12,$B$11) ->  | N12: =PRCNumber(13,$B$11) ->  | O12: =PRCNumber(14,$B$11) ->  | P12: =PRCNumber(15,$B$11) ->  | Q12: =PRCNumber(16,$B$11) ->  | R12: =PRCNumber(17,$B$11) ->  | S12: =PRCNumber(18,$B$11) ->  | T12: =PRCNumber(19,$B$11) ->  | U12: =PRCNumber(20,$B$11) ->  | V12: =PRCNumber(21,$B$11) ->  | W12: =PRCNumber(22,$B$11) ->  | X12: =PRCNumber(23,$B$11) ->  | Y12: =PRCNumber(24,$B$11) ->  | Z12: =PRCNumber(25,$B$11) -> 
A13: PRC name | B13: PCB28 | C13: PCB52 | D13: PCB101 | E13: PCB138 | F13: PCB153 | G13: PCB180
A14: Kow | B14: 5.67 | C14: 5.84 | D14: 6.38 | E14: 6.83 | F14: 6.92 | G14: 7.36
A15: PDMS Kfiber | B15: 5.35249 | C15: 5.51348 | D15: 6.02486 | E15: 6.45101 | F15: 6.53624 | G15: 6.95292
A16: Measured PRC fss | B16: 0.5567688151 | C16: 0.5591378731 | D16: 0.352980581 | E16: 0.27933176 | F16: 0.1552240167 | G16: 0.3040735343
A18: Fitting parameters
A19: Fix a/alpha? (Y or N) | B19: N
A20: a/alpha value | B20: 1
A21: R_initial guess | B21: 1
A22: R_step_size (R(i+1)/R(i)) | B22: =10^0.1 -> 1.258925412
A24: Results
A25: 1st order model | B25: (log(ke) = x*log(Kow)+y)
B26: x | C26: y | D26: r^2
B27: -0.3182680529 | C27: 0.2190070981 | D27: 0.6457096968
A29: Rectangular diffusion model | B29: (log(RD) =a*log(Kow)+b)
B30: a | C30: b | D30: r^2
B31: 1.13518478 | C31: -7.186539476 | D31: 0.8225971506
A33: Cylindrical diffusion model | B33: (log(R) = α*log(Kow)+β)
A34: D | B34: α | C34: β | D34: r^2
A35: 1.044648065e-05 | B35: 1.783695225 | C35: -6.884997973 | D35: 0.8967283155
B37: (log(R) = αlog(Kow)+β)
A38: Effective Diffusivity(cm^2/s) | B38: Fitted parameter
A39: D | B39: α | C39: β | D39: r^2
A40: 5e-06 | B40: 1.343004012 | C40: -3.409036814 | D40: 0.8630473855
A41: =A40*10^0.02 -> 5.23564274e-06 | B41: 1.354966174 | C41: -3.51593002 | D41: 0.8648485469
A42: =A41*10^0.02 -> 5.482390981e-06 | B42: 1.367895265 | C42: -3.629749693 | D42: 0.8667488934
A43: 5.740768107e-06 | B43: 1.381861395 | C43: -3.750996559 | D43: 0.8687330726
A44: 6.011322173e-06 | B44: 1.39704587 | C44: -3.8809245 | D44: 0.8708174948
A45: 6.294627059e-06 | B45: 1.413533377 | C45: -4.020157648 | D45: 0.8729898515
A46: 6.591283693e-06 | B46: 1.431531903 | C46: -4.17014521 | D46: 0.8752579992
A47: 6.901921323e-06 | B47: 1.451254527 | C47: -4.3323963 | D47: 0.8776119002
A48: 7.227198854e-06 | B48: 1.472962293 | C48: -4.50874058 | D48: 0.8800451264
A49: 7.567806242e-06 | B49: 1.496932698 | C49: -4.701114495 | D49: 0.8825453178
A50: 7.924465962e-06 | B50: 1.523592489 | C50: -4.912508836 | D50: 0.885082578
A51: 8.297934537e-06 | B51: 1.553402523 | C51: -5.146147915 | D51: 0.8876211388
A52: 8.689004144e-06 | B52: 1.587063705 | C52: -5.40693361 | D52: 0.8901144641
A53: 9.098504293e-06 | B53: 1.625420062 | C53: -5.700735134 | D53: 0.8924683385
A54: 9.52730359e-06 | B54: 1.669650295 | C54: -6.035774229 | D54: 0.8945359086
A55: 9.976311575e-06 | B55: 1.721527323 | C55: -6.424402704 | D55: 0.8960830896
A56: 1.044648065e-05 | B56: 1.783695225 | C56: -6.884997973 | D56: 0.8967283155
A57: 1.093880812e-05 | B57: 1.8604265 | C57: -7.447253087 | D57: 0.895752557
A58: 1.145433826e-05 | B58: 1.959901504 | C58: -8.167953074 | D58: 0.8917563303
A59: 1.19941646e-05 | B59: 2.099957696 | C59: -9.170879225 | D59: 0.881516625
A60: 1.255943216e-05 | B60: 2.336111378 | C60: -10.84111326 | D60: 0.8551031827
A61: 1.315133996e-05 | B61: 2.958766854 | C61: -15.19258332 | D61: 0.7694396805
A62: 1.377114352e-05 | B62: 2.974349276 | C62: -15.33550782 | D62: 0.7820032308
A63: 1.442015752e-05 | B63: 2.994701155 | C63: -15.51290856 | D63: 0.7962813962
A64: 1.50997586e-05 | B64: 3.021633142 | C64: -15.73762119 | D64: 0.8127038236
A65: 1.58113883e-05 | B65: 3.05808765 | C65: -16.030497 | D65: 0.8318534563
A66: 1.655655607e-05 | B66: 3.109478253 | C66: -16.42979416 | D66: 0.8545635124
A67: 1.733684252e-05 | B67: 3.187459131 | C67: -17.01774988 | D67: 0.8820067011
A68: 1.815390274e-05 | B68: 3.325845609 | C68: -18.03282533 | D68: 0.915325803
A69: 1.900946982e-05 | B69: 3.770496943 | C69: -21.20762161 | D69: 0.936555455
A70: 1.990535853e-05 | B70: 3.865644413 | C70: -21.92156016 | D70: 0.930976636
A71: 2.084346917e-05 | B71: 3.843832762 | C71: -21.81354044 | D71: 0.9339187947
A72: 2.182579161e-05 | B72: 3.82150893 | C72: -21.70444105 | D72: 0.9370709855
A73: 2.285440948e-05 | B73: 3.798662329 | C73: -21.5946487 | D73: 0.9404447921
A74: 2.393150462e-05 | B74: 3.775268007 | C74: -21.48462394 | D74: 0.9440475345
A75: 2.505936168e-05 | B75: 3.751368149 | C75: -21.37551045 | D75: 0.9478640048
A76: 2.624037301e-05 | B76: 3.727068435 | C76: -21.26926215 | D76: 0.951831992
A77: 2.747704369e-05 | B77: 3.702623711 | C77: -21.16959178 | D77: 0.9557722224

Sheet fitted_R
C1: PRC#
B2: D(cm^2/s) | C2: ='PRC model'!B12 -> 1 | D2: ='PRC model'!C12 -> 2 | E2: ='PRC model'!D12 -> 3 | F2: ='PRC model'!E12 -> 4 | G2: ='PRC model'!F12 -> 5 | H2: ='PRC model'!G12 -> 6 | I2: ='PRC model'!H12 ->  | J2: ='PRC model'!I12 ->  | K2: ='PRC model'!J12 ->  | L2: ='PRC model'!K12 ->  | M2: ='PRC model'!L12 ->  | N2: ='PRC model'!M12 ->  | O2: ='PRC model'!N12 ->  | P2: ='PRC model'!O12 ->  | Q2: ='PRC model'!P12 ->  | R2: ='PRC model'!Q12 ->  | S2: ='PRC model'!R12 ->  | T2: ='PRC model'!S12 ->  | U2: ='PRC model'!T12 ->  | V2: ='PRC model'!U12 -> 
A3: Best fit | B3: 1.044648065e-05 | C3: 2.937510806 | D3: 3.937193669 | E3: 4.618126716 | F3: 5.368256942 | G3: 4.816183149 | H3: 6.576854665 | I3: 8.150825552 | J3: 2.532408614 | K3: 3.043054841 | L3: 3.654575569 | M3: 4.336526927 | N3: =G3+LOG($B$3) -> -0.1648468466 | O3: 1.595824669
A5: Guess | B5: 5e-06 | C5: 4.183663672 | D5: 4.658580485 | E5: 5.121034088 | F5: 5.767429164 | G5: 5.274881154 | H5: 6.917347012 | I5: 8.894585485 | J5: 2.532408614 | K5: 3.043054841 | L5: 3.654575569 | M5: 4.336526927
B6: 5.23564274e-06 | C6: 4.13940878 | D6: 4.624837033 | E6: 5.09391782 | F6: 5.744148961 | G6: 5.249316432 | H6: 6.896471647 | I6: 8.874531954 | J6: 2.426856068 | K6: 2.985938181 | L6: 3.61789461 | M6: 4.309252134
B7: 5.482390981e-06 | C7: 4.093193356 | D7: 4.590142958 | E7: 5.066362554 | F7: 5.720704683 | G7: 5.223463947 | H7: 6.875549669 | I7: 8.854484118 | J7: 2.306502937 | K7: 2.925228547 | L7: 3.580056989 | M7: 4.281577737
B8: 5.740768107e-06 | C8: 4.044804113 | D8: 4.554484118 | E8: 5.03839756 | F8: 5.697080127 | G8: 5.197273555 | H8: 6.854575569 | I8: 8.83445669 | J8: 2.166214206 | K8: 2.860418838 | L8: 3.540984113 | M8: 4.253476879
B9: 6.011322173e-06 | C9: 3.99391782 | D9: 4.517728744 | E9: 5.009978946 | F9: 5.673278345 | G9: 5.170760218 | H9: 6.83357784 | I9: 8.814398052 | J9: 1.997687755 | K9: 2.790732318 | L9: 3.500572262 | M9: 4.22490231
B10: 6.294627059e-06 | C10: 3.94029167 | D10: 4.479826979 | E10: 4.981061853 | F10: 5.649270151 | G10: 5.1438835 | H10: 6.812521645 | I10: 8.794363044 | J10: 1.786844659 | K10: 2.715333223 | L10: 3.458610685 | M10: 4.195834597
B11: 6.591283693e-06 | C11: 3.883492603 | D11: 4.440638029 | E11: 4.95163953 | F11: 5.625065459 | G11: 5.116632437 | H11: 6.791404895 | I11: 8.774313562 | J11: 1.505138863 | K11: 2.633177775 | L11: 3.415032852 | M11: 4.166214206
B12: 6.901921323e-06 | C12: 3.823070838 | D12: 4.400019646 | E12: 4.921626387 | F12: 5.600624033 | G12: 5.088961834 | H12: 6.770246016 | I12: 8.754255405 | J12: 1.079769457 | K12: 2.542741728 | L12: 3.369584003 | M12: 4.136050055
B13: 7.227198854e-06 | C13: 3.758429455 | D13: 4.357824808 | E13: 4.891012685 | F13: 5.575956088 | G13: 5.060839659 | H13: 6.749023239 | I13: 8.734201208 | J13: 0.1946966628 | K13: 2.442114825 | L13: 3.322152198 | M13: 4.105258391
B14: 7.567806242e-06 | C14: 3.688933672 | D14: 4.31392971 | E14: 4.85978684 | F14: 5.551025348 | G14: 5.032280288 | H14: 6.727732399 | I14: 8.714147217 | J14: -0.03013778922 | K14: 2.328606966 | L14: 3.272401586 | M14: 4.073818132
B15: 7.924465962e-06 | C15: 3.613661859 | D15: 4.26810924 | E15: 4.827829661 | F15: 5.525847724 | G15: 5.003204779 | H15: 6.70640078 | I15: 8.694084833 | J15: -0.03013778922 | K15: 2.198239407 | L15: 3.220111125 | M15: 4.041675453
B16: 8.297934537e-06 | C16: 3.531509535 | D16: 4.220177116 | E16: 4.79514109 | F16: 5.50038238 | G16: 4.97359938 | H16: 6.685001389 | I16: 8.674022201 | J16: -0.03013778922 | K16: 2.044928791 | L16: 3.164906557 | M16: 4.008778206
B17: 8.689004144e-06 | C17: 3.440858296 | D17: 4.169819501 | E17: 4.761650094 | F17: 5.47461928 | G17: 4.943430278 | H17: 6.663505387 | I17: 8.653965529 | J17: -0.03013778922 | K17: 1.858550283 | L17: 3.106468888 | M17: 3.975055648
B18: 9.098504293e-06 | C18: 3.339787381 | D18: 4.116732216 | E18: 4.727278226 | F18: 5.448559901 | G18: 4.912655944 | H18: 6.641957957 | I18: 8.633881644 | J18: -0.03013778922 | K18: 1.620968227 | L18: 3.044242615 | M18: 3.94044914
B19: 9.52730359e-06 | C19: 3.225424172 | D19: 4.06059924 | E19: 4.691964581 | F19: 5.422152198 | G19: 4.881233883 | H19: 6.620342049 | I19: 8.613829285 | J19: -0.03013778922 | K19: 1.292244153 | L19: 2.97769359 | M19: 3.904865534
B20: 9.976311575e-06 | C20: 3.093472139 | D20: 4.000951777 | E20: 4.655610675 | F20: 5.39539088 | G20: 4.849084981 | H20: 6.598638917 | I20: 8.593750743 | J20: -0.03013778922 | K20: 0.7553977665 | L20: 2.906094165 | M20: 3.868256942
B21: 1.044648065e-05 | C21: 2.937510806 | D21: 3.937193669 | E21: 4.618126716 | F21: 5.368256942 | G21: 4.816183149 | H21: 6.576854665 | I21: 8.573657725 | J21: -0.03013778922 | K21: -0.03013778922 | L21: 2.828477512 | M21: 3.83051195
B22: 1.093880812e-05 | C22: 2.746794691 | D22: 3.868758753 | E22: 4.579424167 | F22: 5.340700974 | G22: 4.782464769 | H22: 6.554971636 | I22: 8.553583818 | J22: -0.03013778922 | K22: -0.03013778922 | L22: 2.74368039 | M22: 3.791544884
B23: 1.145433826e-05 | C23: 2.50074481 | D23: 3.794696663 | E23: 4.53940878 | F23: 5.312739859 | G23: 4.747848486 | H23: 6.533001629 | I23: 8.533497857 | J23: -0.03013778922 | K23: -0.03013778922 | L23: 2.65013324 | M23: 3.751209694
B24: 1.19941646e-05 | C24: 2.153690731 | D24: 3.71392971 | E24: 4.4979085 | F24: 5.284318814 | G24: 4.712286524 | H24: 6.510940523 | I24: 8.513410598 | J24: -0.03013778922 | K24: -0.03013778922 | L24: 2.545738332 | M24: 3.709387447
B25: 1.255943216e-05 | C25: 1.561919903 | D25: 3.625098082 | E25: 4.454788881 | F25: 5.255397766 | G25: 4.675694862 | H25: 6.488764667 | I25: 8.493304891 | J25: -0.03013778922 | K25: -0.03013778922 | L25: 2.427505372 | M25: 3.665917359
B26: 1.315133996e-05 | C26: -0.03013778922 | D26: 3.526270863 | E26: 4.40986071 | F26: 5.225977964 | G26: 4.637954409 | H26: 6.466481195 | I26: 8.473219949 | J26: -0.03013778922 | K26: -0.03013778922 | L26: 2.290956626 | M26: 3.620671729
B27: 1.377114352e-05 | C27: -0.03013778922 | D27: 3.414732273 | E27: 4.362937671 | F27: 5.195973166 | G27: 4.598983028 | H27: 6.444086514 | I27: 8.45311003 | J27: -0.03013778922 | K27: -0.03013778922 | L27: 2.12925366 | M27: 3.573395112
B28: 1.442015752e-05 | C28: -0.03013778922 | D28: 3.286618217 | E28: 4.313829285 | F28: 5.165382521 | G28: 4.558640882 | H28: 6.421560616 | I28: 8.433001629 | J28: -0.03013778922 | K28: -0.03013778922 | L28: 1.930737411 | M28: 3.523856701
B29: 1.50997586e-05 | C29: -0.03013778922 | D29: 3.135986433 | E29: 4.262219494 | F29: 5.134137314 | G29: 4.516831972 | H29: 6.398927988 | I29: 8.412890866 | J29: -0.03013778922 | K29: -0.03013778922 | L29: 1.673278345 | M29: 3.471816095
B30: 1.58113883e-05 | C30: -0.03013778922 | D30: 2.953079446 | E30: 4.207760903 | F30: 5.102208709 | G30: 4.473365923 | H30: 6.376159155 | I30: 8.392774846 | J30: -0.03013778922 | K30: -0.03013778922 | L30: 1.305685007 | M30: 3.416964944
B31: 1.655655607e-05 | C31: -0.03013778922 | D31: 2.720045124 | E31: 4.15013324 | F31: 5.069525108 | G31: 4.428088917 | H31: 6.353232348 | I31: 8.372650181 | J31: -0.03013778922 | K31: -0.03013778922 | L31: 0.6556410819 | M31: 3.358852207
B32: 1.733684252e-05 | C32: -0.03013778922 | D32: 2.398680225 | E32: 4.088821009 | F32: 5.036050055 | G32: 4.380803682 | H32: 6.330189659 | I32: 8.352528552 | J32: 1.269862211 | K32: -0.03013778922 | L32: -0.03013778922 | M32: 3.297080127
B33: 1.815390274e-05 | C33: -0.03013778922 | D33: 1.877924732 | E33: 4.023300195 | F33: 5.001709815 | G33: 4.331284474 | H33: 6.306945341 | I33: 8.332376536 | J33: 1.969862211 | K33: -0.03013778922 | L33: -0.03013778922 | M33: 3.231059296
B34: 1.900946982e-05 | C34: -0.03013778922 | D34: 0.3517315819 | E34: 3.952834691 | F34: 4.966421879 | G34: 4.279222622 | H34: 6.283578146 | I34: 8.312236124 | J34: 2.269862211 | K34: -0.03013778922 | L34: -0.03013778922 | M34: 3.160057809
B35: 1.990535853e-05 | C35: -0.03013778922 | D35: -0.03013778922 | E35: 3.876593979 | F35: 4.930092925 | G35: 4.224347144 | H35: 6.260012659 | I35: 8.292090411 | J35: 2.469862211 | K35: -0.03013778922 | L35: -0.03013778922 | M35: 3.083264405
B36: 2.084346917e-05 | C36: -0.03013778922 | D36: -0.03013778922 | E36: 3.793360647 | F36: 4.892663175 | G36: 4.166214206 | H36: 6.236272661 | I36: 8.271933256 | J36: 2.669862211 | K36: -0.03013778922 | L36: -0.03013778922 | M36: 2.999450581
B37: 2.182579161e-05 | C37: -0.03013778922 | D37: -0.03013778922 | E37: 3.701709815 | F37: 4.854026572 | G37: 4.104421006 | H37: 6.21232012 | I37: 8.251762262 | J37: 2.769862211 | K37: -0.03013778922 | L37: -0.03013778922 | M37: 2.907183371
B38: 2.285440948e-05 | C38: -0.03013778922 | D38: -0.03013778922 | E38: 3.59961548 | F38: 4.814063573 | G38: 4.03833428 | H38: 6.188200839 | I38: 8.231605954 | J38: 2.969862211 | K38: -0.03013778922 | L38: -0.03013778922 | M38: 2.804386792
B39: 2.393150462e-05 | C39: -0.03013778922 | D39: -0.03013778922 | E39: 3.484233417 | F39: 4.772606321 | G39: 3.967310781 | H39: 6.163833726 | I39: 8.211412098 | J39: 2.969862211 | K39: -0.03013778922 | L39: -0.03013778922 | M39: 2.688257255
B40: 2.505936168e-05 | C40: -0.03013778922 | D40: -0.03013778922 | E40: 3.351363256 | F40: 4.729576646 | G40: 3.890395639 | H40: 6.139235144 | I40: 8.191236848 | J40: 3.069862211 | K40: -0.03013778922 | L40: -0.03013778922 | M40: 2.554667001
B41: 2.624037301e-05 | C41: -0.03013778922 | D41: -0.03013778922 | E41: 3.194696663 | F41: 4.684773983 | G41: 3.806502937 | H41: 6.114398052 | I41: 8.171024428 | J41: 3.169862211 | K41: -0.03013778922 | L41: -0.03013778922 | M41: 2.397245928
B42: 2.747704369e-05 | C42: -0.03013778922 | D42: -0.03013778922 | E42: 3.003633417 | F42: 4.637986078 | G42: 3.714130489 | H42: 6.089299626 | I42: 8.150825552 | J42: 3.269862211 | K42: -0.03013778922 | L42: -0.03013778922 | M42: 2.205207169
B43: 5.754399373e-06 | C43: 4.042240278 | D43: 4.552620417 | E43: 5.036939793 | F43: 5.695862314 | G43: 5.195917744 | H43: 6.853507436
B44: 6.025595861e-06 | C44: 3.991236848 | D44: 4.515833381 | E44: 5.008507158 | F44: 5.672050386 | G44: 5.169377837 | H44: 6.832488799
B45: 6.309573445e-06 | C45: 3.937447397 | D45: 4.477866958 | E45: 4.979568071 | F45: 5.648034185 | G45: 5.142491075 | H45: 6.81142893
B46: 6.60693448e-06 | C46: 3.880459214 | D46: 4.438587343 | E46: 4.950102445 | F46: 5.623807626 | G46: 5.115199751 | H46: 6.790311429
B47: 6.918309709e-06 | C47: 3.81984706 | D47: 4.3979085 | E47: 4.920078125 | F47: 5.599354361 | G47: 5.087523279 | H47: 6.769142099
B48: 7.244359601e-06 | C48: 3.754971636 | D48: 4.355641082 | E48: 4.889440295 | F48: 5.574677488 | G48: 5.059395142 | H48: 6.74792587
B49: 7.58577575e-06 | C49: 3.685200271 | D49: 4.311647693 | E49: 4.858157468 | F49: 5.549732734 | G49: 5.030785709 | H49: 6.726644835
B50: 7.943282347e-06 | C50: 3.609624143 | D50: 4.265739153 | E50: 4.826173252 | F50: 5.524543166 | G50: 5.001692602 | H50: 6.705309607
B51: 8.317637711e-06 | C51: 3.527050961 | D51: 4.21766238 | E51: 4.793444269 | F51: 5.499065574 | G51: 4.972065025 | H51: 6.68389166
B52: 8.7096359e-06 | C52: 3.435986433 | D52: 4.167162757 | E52: 4.759907292 | F52: 5.473278345 | G52: 4.94186381 | H52: 6.66239915
B53: 9.120108394e-06 | C53: 3.334265092 | D53: 4.11392971 | E53: 4.725489361 | F53: 5.447197915 | G53: 4.911041618 | H53: 6.640858296
B54: 9.54992586e-06 | C54: 3.219120054 | D54: 4.057643249 | E54: 4.690114874 | F54: 5.420770584 | G54: 4.879582459 | H54: 6.619219263
B55: 1e-05 | C55: 3.086164978 | D55: 3.997798141 | E55: 4.653690731 | F55: 5.394001334 | G55: 4.84741488 | H55: 6.597522122
B56: 1.047128548e-05 | C56: 2.928671679 | D56: 3.933817703 | E56: 4.6161665 | F56: 5.366836926 | G56: 4.814464916 | H56: 6.575723895
B57: 1.096478196e-05 | C57: 2.735731849 | D57: 3.865085105 | E57: 4.577404488 | F57: 5.339282506 | G57: 4.78071759 | H57: 6.553843418
B58: 1.148153621e-05 | C58: 2.485938181 | D58: 3.790676223 | E58: 4.537320552 | F58: 5.311277414 | G58: 4.746049293 | H58: 6.531862967

Sheet cyl_fitted_plot
A2: Compound | B2: logKow | C2: logKpw | D2: logR | E2: ξ | F2: τ | G2: ω | H2: fss
A3: 1 | B3: 4.46 | C3: 4.20662 | D3: =B3*'PRC model'!$B$35+'PRC model'!$C$35 -> 1.070282732 | E3: =10^C3*(Lo^2-Li^2)/10^D3/Lo^2 -> 317.1106431 | F3: ='PRC model'!$A$35*t*86400/10^D3/Lo^2 -> 2865.603793 | G3: =IF(E3>1,(1/E3-1/E3^2)^0.5,(1/E3^2-1/E3)^0.5) -> 0.05606718358 | H3: =IF(E3>1,1-(EXP((1/E3^2-G3^2)*F3)*((COS(G3/E3*F3*2)*(1-erfzR(1/E3*F3^0.5,G3*F3^0.5))-SIN(G3/E3*F3*2)*(-erfzI(1/E3*F3^0.5,G3*F3^0.5)))+(COS(G3/E3*F3*2)*(-erfzI(1/E3*F3^0.5,G3*F3^0.5))+SIN(G3/E3*F3*2)*(1-erfzR(1/E3*F3^0.5,G3*F3^0.5)))/E3/G3)),1-((1/E3+G3)*EXP((1/E3+G3)^2*F3)*ERFC((1/E3+G3)*F3^0.5)-(1/E3-G3)*EXP((1/E3-G3)^2*F3)*ERFC((1/E3-G3)*F3^0.5))/2/G3) -> 0.9980135055
A4: 4 | B4: 4.65 | C4: 4.38655 | D4: =B4*'PRC model'!$B$35+'PRC model'!$C$35 -> 1.409184825 | E4: 219.9068338 | F4: ='PRC model'!$A$35*t*86400/10^D4/Lo^2 -> 1313.149131 | G4: =IF(E4>1,(1/E4-1/E4^2)^0.5,(1/E4^2-1/E4)^0.5) -> 0.06728076706 | H4: =IF(E4>1,1-(EXP((1/E4^2-G4^2)*F4)*((COS(G4/E4*F4*2)*(1-erfzR(1/E4*F4^0.5,G4*F4^0.5))-SIN(G4/E4*F4*2)*(-erfzI(1/E4*F4^0.5,G4*F4^0.5)))+(COS(G4/E4*F4*2)*(-erfzI(1/E4*F4^0.5,G4*F4^0.5))+SIN(G4/E4*F4*2)*(1-erfzR(1/E4*F4^0.5,G4*F4^0.5)))/E4/G4)),1-((1/E4+G4)*EXP((1/E4+G4)^2*F4)*ERFC((1/E4+G4)*F4^0.5)-(1/E4-G4)*EXP((1/E4-G4)^2*F4)*ERFC((1/E4-G4)*F4^0.5))/2/G4) -> 0.9925630668
A5: 10 | B5: 4.84 | C5: 4.56648 | D5: =B5*'PRC model'!$B$35+'PRC model'!$C$35 -> 1.748086917 | E5: 152.4988725 | F5: ='PRC model'!$A$35*t*86400/10^D5/Lo^2 -> 601.744262 | G5: 0.0807119923 | H5: =IF(E5>1,1-(EXP((1/E5^2-G5^2)*F5)*((COS(G5/E5*F5*2)*(1-erfzR(1/E5*F5^0.5,G5*F5^0.5))-SIN(G5/E5*F5*2)*(-erfzI(1/E5*F5^0.5,G5*F5^0.5)))+(COS(G5/E5*F5*2)*(-erfzI(1/E5*F5^0.5,G5*F5^0.5))+SIN(G5/E5*F5*2)*(1-erfzR(1/E5*F5^0.5,G5*F5^0.5)))/E5/G5)),1-((1/E5+G5)*EXP((1/E5+G5)^2*F5)*ERFC((1/E5+G5)*F5^0.5)-(1/E5-G5)*EXP((1/E5-G5)^2*F5)*ERFC((1/E5-G5)*F5^0.5))/2/G5) -> 0.9723468658
A6: 9 | B6: 5.06 | C6: 4.77482 | D6: =B6*'PRC model'!$B$35+'PRC model'!$C$35 -> 2.140499867 | E6: 99.81451095 | F6: ='PRC model'!$A$35*t*86400/10^D6/Lo^2 -> 243.7805251 | G6: 0.0995902172 | H6: =IF(E6>1,1-(EXP((1/E6^2-G6^2)*F6)*((COS(G6/E6*F6*2)*(1-erfzR(1/E6*F6^0.5,G6*F6^0.5))-SIN(G6/E6*F6*2)*(-erfzI(1/E6*F6^0.5,G6*F6^0.5)))+(COS(G6/E6*F6*2)*(-erfzI(1/E6*F6^0.5,G6*F6^0.5))+SIN(G6/E6*F6*2)*(1-erfzR(1/E6*F6^0.5,G6*F6^0.5)))/E6/G6)),1-((1/E6+G6)*EXP((1/E6+G6)^2*F6)*ERFC((1/E6+G6)*F6^0.5)-(1/E6-G6)*EXP((1/E6-G6)^2*F6)*ERFC((1/E6-G6)*F6^0.5))/2/G6) -> 0.9110506579
A7: 7 | B7: 5.07 | C7: 4.78429 | D7: =B7*'PRC model'!$B$35+'PRC model'!$C$35 -> 2.158336819 | E7: 97.90992795 | F7: ='PRC model'!$A$35*t*86400/10^D7/Lo^2 -> 233.9710133 | G7: 0.1005442883 | H7: =IF(E7>1,1-(EXP((1/E7^2-G7^2)*F7)*((COS(G7/E7*F7*2)*(1-erfzR(1/E7*F7^0.5,G7*F7^0.5))-SIN(G7/E7*F7*2)*(-erfzI(1/E7*F7^0.5,G7*F7^0.5)))+(COS(G7/E7*F7*2)*(-erfzI(1/E7*F7^0.5,G7*F7^0.5))+SIN(G7/E7*F7*2)*(1-erfzR(1/E7*F7^0.5,G7*F7^0.5)))/E7/G7)),1-((1/E7+G7)*EXP((1/E7+G7)^2*F7)*ERFC((1/E7+G7)*F7^0.5)-(1/E7-G7)*EXP((1/E7-G7)^2*F7)*ERFC((1/E7-G7)*F7^0.5))/2/G7) -> 0.9071217126
A8: 6 | B8: 5.06 | C8: 4.77482 | D8: =B8*'PRC model'!$B$35+'PRC model'!$C$35 -> 2.140499867 | E8: 99.81451095 | F8: ='PRC model'!$A$35*t*86400/10^D8/Lo^2 -> 243.7805251 | G8: 0.0995902172 | H8: =IF(E8>1,1-(EXP((1/E8^2-G8^2)*F8)*((COS(G8/E8*F8*2)*(1-erfzR(1/E8*F8^0.5,G8*F8^0.5))-SIN(G8/E8*F8*2)*(-erfzI(1/E8*F8^0.5,G8*F8^0.5)))+(COS(G8/E8*F8*2)*(-erfzI(1/E8*F8^0.5,G8*F8^0.5))+SIN(G8/E8*F8*2)*(1-erfzR(1/E8*F8^0.5,G8*F8^0.5)))/E8/G8)),1-((1/E8+G8)*EXP((1/E8+G8)^2*F8)*ERFC((1/E8+G8)*F8^0.5)-(1/E8-G8)*EXP((1/E8-G8)^2*F8)*ERFC((1/E8-G8)*F8^0.5))/2/G8) -> 0.9110506579
A9: 8 | B9: 5.07 | C9: 4.78429 | D9: =B9*'PRC model'!$B$35+'PRC model'!$C$35 -> 2.158336819 | E9: 97.90992795 | F9: ='PRC model'!$A$35*t*86400/10^D9/Lo^2 -> 233.9710133 | G9: 0.1005442883 | H9: =IF(E9>1,1-(EXP((1/E9^2-G9^2)*F9)*((COS(G9/E9*F9*2)*(1-erfzR(1/E9*F9^0.5,G9*F9^0.5))-SIN(G9/E9*F9*2)*(-erfzI(1/E9*F9^0.5,G9*F9^0.5)))+(COS(G9/E9*F9*2)*(-erfzI(1/E9*F9^0.5,G9*F9^0.5))+SIN(G9/E9*F9*2)*(1-erfzR(1/E9*F9^0.5,G9*F9^0.5)))/E9/G9)),1-((1/E9+G9)*EXP((1/E9+G9)^2*F9)*ERFC((1/E9+G9)*F9^0.5)-(1/E9-G9)*EXP((1/E9-G9)^2*F9)*ERFC((1/E9-G9)*F9^0.5))/2/G9) -> 0.9071217126
A10: 5 | B10: 4.97 | C10: 4.68959 | D10: =B10*'PRC model'!$B$35+'PRC model'!$C$35 -> 1.979967297 | E10: 118.712446 | F10: ='PRC model'!$A$35*t*86400/10^D10/Lo^2 -> 352.8024386 | G10: 0.09139342198 | H10: =IF(E10>1,1-(EXP((1/E10^2-G10^2)*F10)*((COS(G10/E10*F10*2)*(1-erfzR(1/E10*F10^0.5,G10*F10^0.5))-SIN(G10/E10*F10*2)*(-erfzI(1/E10*F10^0.5,G10*F10^0.5)))+(COS(G10/E10*F10*2)*(-erfzI(1/E10*F10^0.5,G10*F10^0.5))+SIN(G10/E10*F10*2)*(1-erfzR(1/E10*F10^0.5,G10*F10^0.5)))/E10/G10)),1-((1/E10+G10)*EXP((1/E10+G10)^2*F10)*ERFC((1/E10+G10)*F10^0.5)-(1/E10-G10)*EXP((1/E10-G10)^2*F10)*ERFC((1/E10-G10)*F10^0.5))/2/G10) -> 0.9419398652
A11: 19 | B11: 5.02 | C11: 4.73694 | D11: =B11*'PRC model'!$B$35+'PRC model'!$C$35 -> 2.069152058 | E11: 107.8106073 | F11: ='PRC model'!$A$35*t*86400/10^D11/Lo^2 -> 287.3074034 | G11: 0.09586182656 | H11: =IF(E11>1,1-(EXP((1/E11^2-G11^2)*F11)*((COS(G11/E11*F11*2)*(1-erfzR(1/E11*F11^0.5,G11*F11^0.5))-SIN(G11/E11*F11*2)*(-erfzI(1/E11*F11^0.5,G11*F11^0.5)))+(COS(G11/E11*F11*2)*(-erfzI(1/E11*F11^0.5,G11*F11^0.5))+SIN(G11/E11*F11*2)*(1-erfzR(1/E11*F11^0.5,G11*F11^0.5)))/E11/G11)),1-((1/E11+G11)*EXP((1/E11+G11)^2*F11)*ERFC((1/E11+G11)*F11^0.5)-(1/E11-G11)*EXP((1/E11-G11)^2*F11)*ERFC((1/E11-G11)*F11^0.5))/2/G11) -> 0.925784816
A12: 18 | B12: 5.24 | C12: 4.94528 | D12: =B12*'PRC model'!$B$35+'PRC model'!$C$35 -> 2.461565007 | E12: 70.5648695 | F12: ='PRC model'!$A$35*t*86400/10^D12/Lo^2 -> 116.3948775 | G12: 0.1181969975 | H12: =IF(E12>1,1-(EXP((1/E12^2-G12^2)*F12)*((COS(G12/E12*F12*2)*(1-erfzR(1/E12*F12^0.5,G12*F12^0.5))-SIN(G12/E12*F12*2)*(-erfzI(1/E12*F12^0.5,G12*F12^0.5)))+(COS(G12/E12*F12*2)*(-erfzI(1/E12*F12^0.5,G12*F12^0.5))+SIN(G12/E12*F12*2)*(1-erfzR(1/E12*F12^0.5,G12*F12^0.5)))/E12/G12)),1-((1/E12+G12)*EXP((1/E12+G12)^2*F12)*ERFC((1/E12+G12)*F12^0.5)-(1/E12-G12)*EXP((1/E12-G12)^2*F12)*ERFC((1/E12-G12)*F12^0.5))/2/G12) -> 0.8271761909
A13: 17 | B13: 5.25 | C13: 4.95475 | D13: =B13*'PRC model'!$B$35+'PRC model'!$C$35 -> 2.47940196 | E13: 69.21840545 | F13: ='PRC model'!$A$35*t*86400/10^D13/Lo^2 -> 111.711251 | G13: 0.1193243814 | H13: =IF(E13>1,1-(EXP((1/E13^2-G13^2)*F13)*((COS(G13/E13*F13*2)*(1-erfzR(1/E13*F13^0.5,G13*F13^0.5))-SIN(G13/E13*F13*2)*(-erfzI(1/E13*F13^0.5,G13*F13^0.5)))+(COS(G13/E13*F13*2)*(-erfzI(1/E13*F13^0.5,G13*F13^0.5))+SIN(G13/E13*F13*2)*(1-erfzR(1/E13*F13^0.5,G13*F13^0.5)))/E13/G13)),1-((1/E13+G13)*EXP((1/E13+G13)^2*F13)*ERFC((1/E13+G13)*F13^0.5)-(1/E13-G13)*EXP((1/E13-G13)^2*F13)*ERFC((1/E13-G13)*F13^0.5))/2/G13) -> 0.8218306287
A14: 27 | B14: 5.44 | C14: 5.13468 | D14: =B14*'PRC model'!$B$35+'PRC model'!$C$35 -> 2.818304053 | E14: 48.00091297 | F14: ='PRC model'!$A$35*t*86400/10^D14/Lo^2 -> 51.19114252 | G14: 0.1428248081 | H14: =IF(E14>1,1-(EXP((1/E14^2-G14^2)*F14)*((COS(G14/E14*F14*2)*(1-erfzR(1/E14*F14^0.5,G14*F14^0.5))-SIN(G14/E14*F14*2)*(-erfzI(1/E14*F14^0.5,G14*F14^0.5)))+(COS(G14/E14*F14*2)*(-erfzI(1/E14*F14^0.5,G14*F14^0.5))+SIN(G14/E14*F14*2)*(1-erfzR(1/E14*F14^0.5,G14*F14^0.5)))/E14/G14)),1-((1/E14+G14)*EXP((1/E14+G14)^2*F14)*ERFC((1/E14+G14)*F14^0.5)-(1/E14-G14)*EXP((1/E14-G14)^2*F14)*ERFC((1/E14-G14)*F14^0.5))/2/G14) -> 0.713327317
A15: 24 | B15: 5.35 | C15: 5.04945 | D15: =B15*'PRC model'!$B$35+'PRC model'!$C$35 -> 2.657771482 | E15: 57.08895165 | F15: ='PRC model'!$A$35*t*86400/10^D15/Lo^2 -> 74.08450659 | G15: 0.1311857291 | H15: =IF(E15>1,1-(EXP((1/E15^2-G15^2)*F15)*((COS(G15/E15*F15*2)*(1-erfzR(1/E15*F15^0.5,G15*F15^0.5))-SIN(G15/E15*F15*2)*(-erfzI(1/E15*F15^0.5,G15*F15^0.5)))+(COS(G15/E15*F15*2)*(-erfzI(1/E15*F15^0.5,G15*F15^0.5))+SIN(G15/E15*F15*2)*(1-erfzR(1/E15*F15^0.5,G15*F15^0.5)))/E15/G15)),1-((1/E15+G15)*EXP((1/E15+G15)^2*F15)*ERFC((1/E15+G15)*F15^0.5)-(1/E15-G15)*EXP((1/E15-G15)^2*F15)*ERFC((1/E15-G15)*F15^0.5))/2/G15) -> 0.7658769214
A16: 32 | B16: 5.44 | C16: 5.13468 | D16: =B16*'PRC model'!$B$35+'PRC model'!$C$35 -> 2.818304053 | E16: 48.00091297 | F16: ='PRC model'!$A$35*t*86400/10^D16/Lo^2 -> 51.19114252 | G16: 0.1428248081 | H16: =IF(E16>1,1-(EXP((1/E16^2-G16^2)*F16)*((COS(G16/E16*F16*2)*(1-erfzR(1/E16*F16^0.5,G16*F16^0.5))-SIN(G16/E16*F16*2)*(-erfzI(1/E16*F16^0.5,G16*F16^0.5)))+(COS(G16/E16*F16*2)*(-erfzI(1/E16*F16^0.5,G16*F16^0.5))+SIN(G16/E16*F16*2)*(1-erfzR(1/E16*F16^0.5,G16*F16^0.5)))/E16/G16)),1-((1/E16+G16)*EXP((1/E16+G16)^2*F16)*ERFC((1/E16+G16)*F16^0.5)-(1/E16-G16)*EXP((1/E16-G16)^2*F16)*ERFC((1/E16-G16)*F16^0.5))/2/G16) -> 0.713327317
A17: 16 | B17: 5.16 | C17: 4.86952 | D17: =B17*'PRC model'!$B$35+'PRC model'!$C$35 -> 2.318869389 | E17: 82.3235634 | F17: ='PRC model'!$A$35*t*86400/10^D17/Lo^2 -> 161.6700176 | G17: 0.1095428509 | H17: =IF(E17>1,1-(EXP((1/E17^2-G17^2)*F17)*((COS(G17/E17*F17*2)*(1-erfzR(1/E17*F17^0.5,G17*F17^0.5))-SIN(G17/E17*F17*2)*(-erfzI(1/E17*F17^0.5,G17*F17^0.5)))+(COS(G17/E17*F17*2)*(-erfzI(1/E17*F17^0.5,G17*F17^0.5))+SIN(G17/E17*F17*2)*(1-erfzR(1/E17*F17^0.5,G17*F17^0.5)))/E17/G17)),1-((1/E17+G17)*EXP((1/E17+G17)^2*F17)*ERFC((1/E17+G17)*F17^0.5)-(1/E17-G17)*EXP((1/E17-G17)^2*F17)*ERFC((1/E17-G17)*F17^0.5))/2/G17) -> 0.8676421721
A18: 26 | B18: 5.66 | C18: 5.34302 | D18: =B18*'PRC model'!$B$35+'PRC model'!$C$35 -> 3.210717002 | E18: 31.41785624 | F18: ='PRC model'!$A$35*t*86400/10^D18/Lo^2 -> 20.73871641 | G18: 0.1755447127 | H18: =IF(E18>1,1-(EXP((1/E18^2-G18^2)*F18)*((COS(G18/E18*F18*2)*(1-erfzR(1/E18*F18^0.5,G18*F18^0.5))-SIN(G18/E18*F18*2)*(-erfzI(1/E18*F18^0.5,G18*F18^0.5)))+(COS(G18/E18*F18*2)*(-erfzI(1/E18*F18^0.5,G18*F18^0.5))+SIN(G18/E18*F18*2)*(1-erfzR(1/E18*F18^0.5,G18*F18^0.5)))/E18/G18)),1-((1/E18+G18)*EXP((1/E18+G18)^2*F18)*ERFC((1/E18+G18)*F18^0.5)-(1/E18-G18)*EXP((1/E18-G18)^2*F18)*ERFC((1/E18-G18)*F18^0.5))/2/G18) -> 0.5882184448
A19: 25 | B19: 5.67 | C19: 5.35249 | D19: =B19*'PRC model'!$B$35+'PRC model'!$C$35 -> 3.228553954 | E19: 30.8183651 | F19: ='PRC model'!$A$35*t*86400/10^D19/Lo^2 -> 19.90420888 | G19: 0.1771871889 | H19: =IF(E19>1,1-(EXP((1/E19^2-G19^2)*F19)*((COS(G19/E19*F19*2)*(1-erfzR(1/E19*F19^0.5,G19*F19^0.5))-SIN(G19/E19*F19*2)*(-erfzI(1/E19*F19^0.5,G19*F19^0.5)))+(COS(G19/E19*F19*2)*(-erfzI(1/E19*F19^0.5,G19*F19^0.5))+SIN(G19/E19*F19*2)*(1-erfzR(1/E19*F19^0.5,G19*F19^0.5)))/E19/G19)),1-((1/E19+G19)*EXP((1/E19+G19)^2*F19)*ERFC((1/E19+G19)*F19^0.5)-(1/E19-G19)*EXP((1/E19-G19)^2*F19)*ERFC((1/E19-G19)*F19^0.5))/2/G19) -> 0.5828884625
A20: 31 | B20: 5.67 | C20: 5.35249 | D20: =B20*'PRC model'!$B$35+'PRC model'!$C$35 -> 3.228553954 | E20: 30.8183651 | F20: ='PRC model'!$A$35*t*86400/10^D20/Lo^2 -> 19.90420888 | G20: 0.1771871889 | H20: =IF(E20>1,1-(EXP((1/E20^2-G20^2)*F20)*((COS(G20/E20*F20*2)*(1-erfzR(1/E20*F20^0.5,G20*F20^0.5))-SIN(G20/E20*F20*2)*(-erfzI(1/E20*F20^0.5,G20*F20^0.5)))+(COS(G20/E20*F20*2)*(-erfzI(1/E20*F20^0.5,G20*F20^0.5))+SIN(G20/E20*F20*2)*(1-erfzR(1/E20*F20^0.5,G20*F20^0.5)))/E20/G20)),1-((1/E20+G20)*EXP((1/E20+G20)^2*F20)*ERFC((1/E20+G20)*F20^0.5)-(1/E20-G20)*EXP((1/E20-G20)^2*F20)*ERFC((1/E20-G20)*F20^0.5))/2/G20) -> 0.5828884625
A21: 28 | B21: 5.67 | C21: 5.35249 | D21: =B21*'PRC model'!$B$35+'PRC model'!$C$35 -> 3.228553954 | E21: 30.8183651 | F21: ='PRC model'!$A$35*t*86400/10^D21/Lo^2 -> 19.90420888 | G21: 0.1771871889 | H21: =IF(E21>1,1-(EXP((1/E21^2-G21^2)*F21)*((COS(G21/E21*F21*2)*(1-erfzR(1/E21*F21^0.5,G21*F21^0.5))-SIN(G21/E21*F21*2)*(-erfzI(1/E21*F21^0.5,G21*F21^0.5)))+(COS(G21/E21*F21*2)*(-erfzI(1/E21*F21^0.5,G21*F21^0.5))+SIN(G21/E21*F21*2)*(1-erfzR(1/E21*F21^0.5,G21*F21^0.5)))/E21/G21)),1-((1/E21+G21)*EXP((1/E21+G21)^2*F21)*ERFC((1/E21+G21)*F21^0.5)-(1/E21-G21)*EXP((1/E21-G21)^2*F21)*ERFC((1/E21-G21)*F21^0.5))/2/G21) -> 0.5828884625
A22: 20 | B22: 5.57 | C22: 5.25779 | D22: =B22*'PRC model'!$B$35+'PRC model'!$C$35 -> 3.050184432 | E22: 37.36621586 | F22: ='PRC model'!$A$35*t*86400/10^D22/Lo^2 -> 30.01334796 | G22: 0.1613875162 | H22: =IF(E22>1,1-(EXP((1/E22^2-G22^2)*F22)*((COS(G22/E22*F22*2)*(1-erfzR(1/E22*F22^0.5,G22*F22^0.5))-SIN(G22/E22*F22*2)*(-erfzI(1/E22*F22^0.5,G22*F22^0.5)))+(COS(G22/E22*F22*2)*(-erfzI(1/E22*F22^0.5,G22*F22^0.5))+SIN(G22/E22*F22*2)*(1-erfzR(1/E22*F22^0.5,G22*F22^0.5)))/E22/G22)),1-((1/E22+G22)*EXP((1/E22+G22)^2*F22)*ERFC((1/E22+G22)*F22^0.5)-(1/E22-G22)*EXP((1/E22-G22)^2*F22)*ERFC((1/E22-G22)*F22^0.5))/2/G22) -> 0.6379009764
A23: 22 | B23: 5.58 | C23: 5.26726 | D23: =B23*'PRC model'!$B$35+'PRC model'!$C$35 -> 3.068021384 | E23: 36.65322274 | F23: ='PRC model'!$A$35*t*86400/10^D23/Lo^2 -> 28.80563749 | G23: 0.1629060563 | H23: =IF(E23>1,1-(EXP((1/E23^2-G23^2)*F23)*((COS(G23/E23*F23*2)*(1-erfzR(1/E23*F23^0.5,G23*F23^0.5))-SIN(G23/E23*F23*2)*(-erfzI(1/E23*F23^0.5,G23*F23^0.5)))+(COS(G23/E23*F23*2)*(-erfzI(1/E23*F23^0.5,G23*F23^0.5))+SIN(G23/E23*F23*2)*(1-erfzR(1/E23*F23^0.5,G23*F23^0.5)))/E23/G23)),1-((1/E23+G23)*EXP((1/E23+G23)^2*F23)*ERFC((1/E23+G23)*F23^0.5)-(1/E23-G23)*EXP((1/E23-G23)^2*F23)*ERFC((1/E23-G23)*F23^0.5))/2/G23) -> 0.6322450764
A24: 52 | B24: 5.84 | C24: 5.51348 | D24: =B24*'PRC model'!$B$35+'PRC model'!$C$35 -> 3.531782143 | E24: 22.21116854 | F24: ='PRC model'!$A$35*t*86400/10^D24/Lo^2 -> 9.901858878 | G24: 0.2073532706 | H24: =IF(E24>1,1-(EXP((1/E24^2-G24^2)*F24)*((COS(G24/E24*F24*2)*(1-erfzR(1/E24*F24^0.5,G24*F24^0.5))-SIN(G24/E24*F24*2)*(-erfzI(1/E24*F24^0.5,G24*F24^0.5)))+(COS(G24/E24*F24*2)*(-erfzI(1/E24*F24^0.5,G24*F24^0.5))+SIN(G24/E24*F24*2)*(1-erfzR(1/E24*F24^0.5,G24*F24^0.5)))/E24/G24)),1-((1/E24+G24)*EXP((1/E24+G24)^2*F24)*ERFC((1/E24+G24)*F24^0.5)-(1/E24-G24)*EXP((1/E24-G24)^2*F24)*ERFC((1/E24-G24)*F24^0.5))/2/G24) -> 0.4994450772
A25: 47 | B25: 5.85 | C25: 5.52295 | D25: =B25*'PRC model'!$B$35+'PRC model'!$C$35 -> 3.549619095 | E25: 21.78735227 | F25: ='PRC model'!$A$35*t*86400/10^D25/Lo^2 -> 9.503416871 | G25: 0.209264294 | H25: =IF(E25>1,1-(EXP((1/E25^2-G25^2)*F25)*((COS(G25/E25*F25*2)*(1-erfzR(1/E25*F25^0.5,G25*F25^0.5))-SIN(G25/E25*F25*2)*(-erfzI(1/E25*F25^0.5,G25*F25^0.5)))+(COS(G25/E25*F25*2)*(-erfzI(1/E25*F25^0.5,G25*F25^0.5))+SIN(G25/E25*F25*2)*(1-erfzR(1/E25*F25^0.5,G25*F25^0.5)))/E25/G25)),1-((1/E25+G25)*EXP((1/E25+G25)^2*F25)*ERFC((1/E25+G25)*F25^0.5)-(1/E25-G25)*EXP((1/E25-G25)^2*F25)*ERFC((1/E25-G25)*F25^0.5))/2/G25) -> 0.4949911074
A26: 44 | B26: 5.75 | C26: 5.42825 | D26: =B26*'PRC model'!$B$35+'PRC model'!$C$35 -> 3.371249572 | E26: 26.41642103 | F26: ='PRC model'!$A$35*t*86400/10^D26/Lo^2 -> 14.33010269 | G26: 0.1908460696 | H26: =IF(E26>1,1-(EXP((1/E26^2-G26^2)*F26)*((COS(G26/E26*F26*2)*(1-erfzR(1/E26*F26^0.5,G26*F26^0.5))-SIN(G26/E26*F26*2)*(-erfzI(1/E26*F26^0.5,G26*F26^0.5)))+(COS(G26/E26*F26*2)*(-erfzI(1/E26*F26^0.5,G26*F26^0.5))+SIN(G26/E26*F26*2)*(1-erfzR(1/E26*F26^0.5,G26*F26^0.5)))/E26/G26)),1-((1/E26+G26)*EXP((1/E26+G26)^2*F26)*ERFC((1/E26+G26)*F26^0.5)-(1/E26-G26)*EXP((1/E26-G26)^2*F26)*ERFC((1/E26-G26)*F26^0.5))/2/G26) -> 0.5418583162
A27: 42 | B27: 5.76 | C27: 5.43772 | D27: =B27*'PRC model'!$B$35+'PRC model'!$C$35 -> 3.389086525 | E27: 25.91236339 | F27: ='PRC model'!$A$35*t*86400/10^D27/Lo^2 -> 13.75347209 | G27: 0.1926195836 | H27: =IF(E27>1,1-(EXP((1/E27^2-G27^2)*F27)*((COS(G27/E27*F27*2)*(1-erfzR(1/E27*F27^0.5,G27*F27^0.5))-SIN(G27/E27*F27*2)*(-erfzI(1/E27*F27^0.5,G27*F27^0.5)))+(COS(G27/E27*F27*2)*(-erfzI(1/E27*F27^0.5,G27*F27^0.5))+SIN(G27/E27*F27*2)*(1-erfzR(1/E27*F27^0.5,G27*F27^0.5)))/E27/G27)),1-((1/E27+G27)*EXP((1/E27+G27)^2*F27)*ERFC((1/E27+G27)*F27^0.5)-(1/E27-G27)*EXP((1/E27-G27)^2*F27)*ERFC((1/E27-G27)*F27^0.5))/2/G27) -> 0.5369430263
A28: 71 | B28: 5.98 | C28: 5.64606 | D28: =B28*'PRC model'!$B$35+'PRC model'!$C$35 -> 3.781499474 | E28: 16.96032132 | F28: ='PRC model'!$A$35*t*86400/10^D28/Lo^2 -> 5.571849803 | G28: 0.2355519692 | H28: =IF(E28>1,1-(EXP((1/E28^2-G28^2)*F28)*((COS(G28/E28*F28*2)*(1-erfzR(1/E28*F28^0.5,G28*F28^0.5))-SIN(G28/E28*F28*2)*(-erfzI(1/E28*F28^0.5,G28*F28^0.5)))+(COS(G28/E28*F28*2)*(-erfzI(1/E28*F28^0.5,G28*F28^0.5))+SIN(G28/E28*F28*2)*(1-erfzR(1/E28*F28^0.5,G28*F28^0.5)))/E28/G28)),1-((1/E28+G28)*EXP((1/E28+G28)^2*F28)*ERFC((1/E28+G28)*F28^0.5)-(1/E28-G28)*EXP((1/E28-G28)^2*F28)*ERFC((1/E28-G28)*F28^0.5))/2/G28) -> 0.4418832339
A29: 41 | B29: 5.69 | C29: 5.37143 | D29: =B29*'PRC model'!$B$35+'PRC model'!$C$35 -> 3.264227859 | E29: 29.65348162 | F29: ='PRC model'!$A$35*t*86400/10^D29/Lo^2 -> 18.33458213 | G29: 0.1805148806 | H29: =IF(E29>1,1-(EXP((1/E29^2-G29^2)*F29)*((COS(G29/E29*F29*2)*(1-erfzR(1/E29*F29^0.5,G29*F29^0.5))-SIN(G29/E29*F29*2)*(-erfzI(1/E29*F29^0.5,G29*F29^0.5)))+(COS(G29/E29*F29*2)*(-erfzI(1/E29*F29^0.5,G29*F29^0.5))+SIN(G29/E29*F29*2)*(1-erfzR(1/E29*F29^0.5,G29*F29^0.5)))/E29/G29)),1-((1/E29+G29)*EXP((1/E29+G29)^2*F29)*ERFC((1/E29+G29)*F29^0.5)-(1/E29-G29)*EXP((1/E29-G29)^2*F29)*ERFC((1/E29-G29)*F29^0.5))/2/G29) -> 0.5723571187
A30: 103 | B30: 6.22 | C30: 5.87334 | D30: =B30*'PRC model'!$B$35+'PRC model'!$C$35 -> 4.209586328 | E30: 10.68137646 | F30: ='PRC model'!$A$35*t*86400/10^D30/Lo^2 -> 2.079277944 | G30: 0.2913005684 | H30: =IF(E30>1,1-(EXP((1/E30^2-G30^2)*F30)*((COS(G30/E30*F30*2)*(1-erfzR(1/E30*F30^0.5,G30*F30^0.5))-SIN(G30/E30*F30*2)*(-erfzI(1/E30*F30^0.5,G30*F30^0.5)))+(COS(G30/E30*F30*2)*(-erfzI(1/E30*F30^0.5,G30*F30^0.5))+SIN(G30/E30*F30*2)*(1-erfzR(1/E30*F30^0.5,G30*F30^0.5)))/E30/G30)),1-((1/E30+G30)*EXP((1/E30+G30)^2*F30)*ERFC((1/E30+G30)*F30^0.5)-(1/E30-G30)*EXP((1/E30-G30)^2*F30)*ERFC((1/E30-G30)*F30^0.5))/2/G30) -> 0.3660370077
A31: 40 | B31: 5.66 | C31: 5.34302 | D31: =B31*'PRC model'!$B$35+'PRC model'!$C$35 -> 3.210717002 | E31: 31.41785624 | F31: ='PRC model'!$A$35*t*86400/10^D31/Lo^2 -> 20.73871641 | G31: 0.1755447127 | H31: =IF(E31>1,1-(EXP((1/E31^2-G31^2)*F31)*((COS(G31/E31*F31*2)*(1-erfzR(1/E31*F31^0.5,G31*F31^0.5))-SIN(G31/E31*F31*2)*(-erfzI(1/E31*F31^0.5,G31*F31^0.5)))+(COS(G31/E31*F31*2)*(-erfzI(1/E31*F31^0.5,G31*F31^0.5))+SIN(G31/E31*F31*2)*(1-erfzR(1/E31*F31^0.5,G31*F31^0.5)))/E31/G31)),1-((1/E31+G31)*EXP((1/E31+G31)^2*F31)*ERFC((1/E31+G31)*F31^0.5)-(1/E31-G31)*EXP((1/E31-G31)^2*F31)*ERFC((1/E31-G31)*F31^0.5))/2/G31) -> 0.5882184448
A32: 74 | B32: 6.2 | C32: 5.8544 | D32: =B32*'PRC model'!$B$35+'PRC model'!$C$35 -> 4.173912424 | E32: 11.10097505 | F32: ='PRC model'!$A$35*t*86400/10^D32/Lo^2 -> 2.257285289 | G32: 0.2862994559 | H32: =IF(E32>1,1-(EXP((1/E32^2-G32^2)*F32)*((COS(G32/E32*F32*2)*(1-erfzR(1/E32*F32^0.5,G32*F32^0.5))-SIN(G32/E32*F32*2)*(-erfzI(1/E32*F32^0.5,G32*F32^0.5)))+(COS(G32/E32*F32*2)*(-erfzI(1/E32*F32^0.5,G32*F32^0.5))+SIN(G32/E32*F32*2)*(1-erfzR(1/E32*F32^0.5,G32*F32^0.5)))/E32/G32)),1-((1/E32+G32)*EXP((1/E32+G32)^2*F32)*ERFC((1/E32+G32)*F32^0.5)-(1/E32-G32)*EXP((1/E32-G32)^2*F32)*ERFC((1/E32-G32)*F32^0.5))/2/G32) -> 0.3713541941
A33: 70 | B33: 6.2 | C33: 5.8544 | D33: =B33*'PRC model'!$B$35+'PRC model'!$C$35 -> 4.173912424 | E33: 11.10097505 | F33: ='PRC model'!$A$35*t*86400/10^D33/Lo^2 -> 2.257285289 | G33: 0.2862994559 | H33: =IF(E33>1,1-(EXP((1/E33^2-G33^2)*F33)*((COS(G33/E33*F33*2)*(1-erfzR(1/E33*F33^0.5,G33*F33^0.5))-SIN(G33/E33*F33*2)*(-erfzI(1/E33*F33^0.5,G33*F33^0.5)))+(COS(G33/E33*F33*2)*(-erfzI(1/E33*F33^0.5,G33*F33^0.5))+SIN(G33/E33*F33*2)*(1-erfzR(1/E33*F33^0.5,G33*F33^0.5)))/E33/G33)),1-((1/E33+G33)*EXP((1/E33+G33)^2*F33)*ERFC((1/E33+G33)*F33^0.5)-(1/E33-G33)*EXP((1/E33-G33)^2*F33)*ERFC((1/E33-G33)*F33^0.5))/2/G33) -> 0.3713541941
A34: 66 | B34: 6.2 | C34: 5.8544 | D34: =B34*'PRC model'!$B$35+'PRC model'!$C$35 -> 4.173912424 | E34: 11.10097505 | F34: ='PRC model'!$A$35*t*86400/10^D34/Lo^2 -> 2.257285289 | G34: 0.2862994559 | H34: =IF(E34>1,1-(EXP((1/E34^2-G34^2)*F34)*((COS(G34/E34*F34*2)*(1-erfzR(1/E34*F34^0.5,G34*F34^0.5))-SIN(G34/E34*F34*2)*(-erfzI(1/E34*F34^0.5,G34*F34^0.5)))+(COS(G34/E34*F34*2)*(-erfzI(1/E34*F34^0.5,G34*F34^0.5))+SIN(G34/E34*F34*2)*(1-erfzR(1/E34*F34^0.5,G34*F34^0.5)))/E34/G34)),1-((1/E34+G34)*EXP((1/E34+G34)^2*F34)*ERFC((1/E34+G34)*F34^0.5)-(1/E34-G34)*EXP((1/E34-G34)^2*F34)*ERFC((1/E34-G34)*F34^0.5))/2/G34) -> 0.3713541941
A35: 95 | B35: 6.13 | C35: 5.78811 | D35: =B35*'PRC model'!$B$35+'PRC model'!$C$35 -> 4.049053758 | E35: =10^C35*(Lo^2-Li^2)/10^D35/Lo^2 -> 12.70368722 | F35: ='PRC model'!$A$35*t*86400/10^D35/Lo^2 -> 3.00915887 | G35: 0.2692970284 | H35: =IF(E35>1,1-(EXP((1/E35^2-G35^2)*F35)*((COS(G35/E35*F35*2)*(1-erfzR(1/E35*F35^0.5,G35*F35^0.5))-SIN(G35/E35*F35*2)*(-erfzI(1/E35*F35^0.5,G35*F35^0.5)))+(COS(G35/E35*F35*2)*(-erfzI(1/E35*F35^0.5,G35*F35^0.5))+SIN(G35/E35*F35*2)*(1-erfzR(1/E35*F35^0.5,G35*F35^0.5)))/E35/G35)),1-((1/E35+G35)*EXP((1/E35+G35)^2*F35)*ERFC((1/E35+G35)*F35^0.5)-(1/E35-G35)*EXP((1/E35-G35)^2*F35)*ERFC((1/E35-G35)*F35^0.5))/2/G35) -> 0.3913277046
A36: 93 | B36: 6.04 | C36: 5.70288 | D36: =B36*'PRC model'!$B$35+'PRC model'!$C$35 -> 3.888521188 | E36: 15.10888315 | F36: ='PRC model'!$A$35*t*86400/10^D36/Lo^2 -> 4.354894991 | G36: 0.2486073452 | H36: =IF(E36>1,1-(EXP((1/E36^2-G36^2)*F36)*((COS(G36/E36*F36*2)*(1-erfzR(1/E36*F36^0.5,G36*F36^0.5))-SIN(G36/E36*F36*2)*(-erfzI(1/E36*F36^0.5,G36*F36^0.5)))+(COS(G36/E36*F36*2)*(-erfzI(1/E36*F36^0.5,G36*F36^0.5))+SIN(G36/E36*F36*2)*(1-erfzR(1/E36*F36^0.5,G36*F36^0.5)))/E36/G36)),1-((1/E36+G36)*EXP((1/E36+G36)^2*F36)*ERFC((1/E36+G36)*F36^0.5)-(1/E36-G36)*EXP((1/E36-G36)^2*F36)*ERFC((1/E36-G36)*F36^0.5))/2/G36) -> 0.4203310588
A37: 56 | B37: 6.11 | C37: 5.76917 | D37: =B37*'PRC model'!$B$35+'PRC model'!$C$35 -> 4.013379853 | E37: 13.20272863 | F37: ='PRC model'!$A$35*t*86400/10^D37/Lo^2 -> 3.266773482 | G37: 0.2645847323 | H37: =IF(E37>1,1-(EXP((1/E37^2-G37^2)*F37)*((COS(G37/E37*F37*2)*(1-erfzR(1/E37*F37^0.5,G37*F37^0.5))-SIN(G37/E37*F37*2)*(-erfzI(1/E37*F37^0.5,G37*F37^0.5)))+(COS(G37/E37*F37*2)*(-erfzI(1/E37*F37^0.5,G37*F37^0.5))+SIN(G37/E37*F37*2)*(1-erfzR(1/E37*F37^0.5,G37*F37^0.5)))/E37/G37)),1-((1/E37+G37)*EXP((1/E37+G37)^2*F37)*ERFC((1/E37+G37)*F37^0.5)-(1/E37-G37)*EXP((1/E37-G37)^2*F37)*ERFC((1/E37-G37)*F37^0.5))/2/G37) -> 0.3974401775
A38: 60 | B38: 6.11 | C38: 5.76917 | D38: =B38*'PRC model'!$B$35+'PRC model'!$C$35 -> 4.013379853 | E38: 13.20272863 | F38: ='PRC model'!$A$35*t*86400/10^D38/Lo^2 -> 3.266773482 | G38: 0.2645847323 | H38: =IF(E38>1,1-(EXP((1/E38^2-G38^2)*F38)*((COS(G38/E38*F38*2)*(1-erfzR(1/E38*F38^0.5,G38*F38^0.5))-SIN(G38/E38*F38*2)*(-erfzI(1/E38*F38^0.5,G38*F38^0.5)))+(COS(G38/E38*F38*2)*(-erfzI(1/E38*F38^0.5,G38*F38^0.5))+SIN(G38/E38*F38*2)*(1-erfzR(1/E38*F38^0.5,G38*F38^0.5)))/E38/G38)),1-((1/E38+G38)*EXP((1/E38+G38)^2*F38)*ERFC((1/E38+G38)*F38^0.5)-(1/E38-G38)*EXP((1/E38-G38)^2*F38)*ERFC((1/E38-G38)*F38^0.5))/2/G38) -> 0.3974401775
A39: 92 | B39: 6.35 | C39: 5.99645 | D39: =B39*'PRC model'!$B$35+'PRC model'!$C$35 -> 4.441466708 | E39: 8.314896404 | F39: ='PRC model'!$A$35*t*86400/10^D39/Lo^2 -> 1.219079891 | G39: 0.3252724248 | H39: =IF(E39>1,1-(EXP((1/E39^2-G39^2)*F39)*((COS(G39/E39*F39*2)*(1-erfzR(1/E39*F39^0.5,G39*F39^0.5))-SIN(G39/E39*F39*2)*(-erfzI(1/E39*F39^0.5,G39*F39^0.5)))+(COS(G39/E39*F39*2)*(-erfzI(1/E39*F39^0.5,G39*F39^0.5))+SIN(G39/E39*F39*2)*(1-erfzR(1/E39*F39^0.5,G39*F39^0.5)))/E39/G39)),1-((1/E39+G39)*EXP((1/E39+G39)^2*F39)*ERFC((1/E39+G39)*F39^0.5)-(1/E39-G39)*EXP((1/E39-G39)^2*F39)*ERFC((1/E39-G39)*F39^0.5))/2/G39) -> 0.3353284905
A40: 84 | B40: 6.04 | C40: 5.70288 | D40: =B40*'PRC model'!$B$35+'PRC model'!$C$35 -> 3.888521188 | E40: 15.10888315 | F40: ='PRC model'!$A$35*t*86400/10^D40/Lo^2 -> 4.354894991 | G40: 0.2486073452 | H40: =IF(E40>1,1-(EXP((1/E40^2-G40^2)*F40)*((COS(G40/E40*F40*2)*(1-erfzR(1/E40*F40^0.5,G40*F40^0.5))-SIN(G40/E40*F40*2)*(-erfzI(1/E40*F40^0.5,G40*F40^0.5)))+(COS(G40/E40*F40*2)*(-erfzI(1/E40*F40^0.5,G40*F40^0.5))+SIN(G40/E40*F40*2)*(1-erfzR(1/E40*F40^0.5,G40*F40^0.5)))/E40/G40)),1-((1/E40+G40)*EXP((1/E40+G40)^2*F40)*ERFC((1/E40+G40)*F40^0.5)-(1/E40-G40)*EXP((1/E40-G40)^2*F40)*ERFC((1/E40-G40)*F40^0.5))/2/G40) -> 0.4203310588
A41: 101 | B41: 6.38 | C41: 6.02486 | D41: =B41*'PRC model'!$B$35+'PRC model'!$C$35 -> 4.494977564 | E41: 7.847945635 | F41: ='PRC model'!$A$35*t*86400/10^D41/Lo^2 -> 1.077758138 | G41: 0.3334449666 | H41: =IF(E41>1,1-(EXP((1/E41^2-G41^2)*F41)*((COS(G41/E41*F41*2)*(1-erfzR(1/E41*F41^0.5,G41*F41^0.5))-SIN(G41/E41*F41*2)*(-erfzI(1/E41*F41^0.5,G41*F41^0.5)))+(COS(G41/E41*F41*2)*(-erfzI(1/E41*F41^0.5,G41*F41^0.5))+SIN(G41/E41*F41*2)*(1-erfzR(1/E41*F41^0.5,G41*F41^0.5)))/E41/G41)),1-((1/E41+G41)*EXP((1/E41+G41)^2*F41)*ERFC((1/E41+G41)*F41^0.5)-(1/E41-G41)*EXP((1/E41-G41)^2*F41)*ERFC((1/E41-G41)*F41^0.5))/2/G41) -> 0.3291156578
A42: 99 | B42: 6.39 | C42: 6.03433 | D42: =B42*'PRC model'!$B$35+'PRC model'!$C$35 -> 4.512814517 | E42: 7.69819723 | F42: ='PRC model'!$A$35*t*86400/10^D42/Lo^2 -> 1.034390108 | G42: 0.3361939796 | H42: =IF(E42>1,1-(EXP((1/E42^2-G42^2)*F42)*((COS(G42/E42*F42*2)*(1-erfzR(1/E42*F42^0.5,G42*F42^0.5))-SIN(G42/E42*F42*2)*(-erfzI(1/E42*F42^0.5,G42*F42^0.5)))+(COS(G42/E42*F42*2)*(-erfzI(1/E42*F42^0.5,G42*F42^0.5))+SIN(G42/E42*F42*2)*(1-erfzR(1/E42*F42^0.5,G42*F42^0.5)))/E42/G42)),1-((1/E42+G42)*EXP((1/E42+G42)^2*F42)*ERFC((1/E42+G42)*F42^0.5)-(1/E42-G42)*EXP((1/E42-G42)^2*F42)*ERFC((1/E42-G42)*F42^0.5))/2/G42) -> 0.3271116991
A43: 119 | B43: 6.58 | C43: 6.21426 | D43: =B43*'PRC model'!$B$35+'PRC model'!$C$35 -> 4.851716609 | E43: 5.338471651 | F43: ='PRC model'!$A$35*t*86400/10^D43/Lo^2 -> 0.4740042828 | G43: 0.3901678147 | H43: =IF(E43>1,1-(EXP((1/E43^2-G43^2)*F43)*((COS(G43/E43*F43*2)*(1-erfzR(1/E43*F43^0.5,G43*F43^0.5))-SIN(G43/E43*F43*2)*(-erfzI(1/E43*F43^0.5,G43*F43^0.5)))+(COS(G43/E43*F43*2)*(-erfzI(1/E43*F43^0.5,G43*F43^0.5))+SIN(G43/E43*F43*2)*(1-erfzR(1/E43*F43^0.5,G43*F43^0.5)))/E43/G43)),1-((1/E43+G43)*EXP((1/E43+G43)^2*F43)*ERFC((1/E43+G43)*F43^0.5)-(1/E43-G43)*EXP((1/E43-G43)^2*F43)*ERFC((1/E43-G43)*F43^0.5))/2/G43) -> 0.2946902337
A44: 83 | B44: 6.26 | C44: 5.91122 | D44: =B44*'PRC model'!$B$35+'PRC model'!$C$35 -> 4.280934137 | E44: 9.889160214 | F44: ='PRC model'!$A$35*t*86400/10^D44/Lo^2 -> 1.764268734 | G44: 0.3014886409 | H44: =IF(E44>1,1-(EXP((1/E44^2-G44^2)*F44)*((COS(G44/E44*F44*2)*(1-erfzR(1/E44*F44^0.5,G44*F44^0.5))-SIN(G44/E44*F44*2)*(-erfzI(1/E44*F44^0.5,G44*F44^0.5)))+(COS(G44/E44*F44*2)*(-erfzI(1/E44*F44^0.5,G44*F44^0.5))+SIN(G44/E44*F44*2)*(1-erfzR(1/E44*F44^0.5,G44*F44^0.5)))/E44/G44)),1-((1/E44+G44)*EXP((1/E44+G44)^2*F44)*ERFC((1/E44+G44)*F44^0.5)-(1/E44-G44)*EXP((1/E44-G44)^2*F44)*ERFC((1/E44-G44)*F44^0.5))/2/G44) -> 0.355895571
A45: 87 | B45: 6.29 | C45: 5.93963 | D45: =B45*'PRC model'!$B$35+'PRC model'!$C$35 -> 4.334444994 | E45: 9.333801405 | F45: ='PRC model'!$A$35*t*86400/10^D45/Lo^2 -> 1.559746002 | G45: 0.3092879623 | H45: =IF(E45>1,1-(EXP((1/E45^2-G45^2)*F45)*((COS(G45/E45*F45*2)*(1-erfzR(1/E45*F45^0.5,G45*F45^0.5))-SIN(G45/E45*F45*2)*(-erfzI(1/E45*F45^0.5,G45*F45^0.5)))+(COS(G45/E45*F45*2)*(-erfzI(1/E45*F45^0.5,G45*F45^0.5))+SIN(G45/E45*F45*2)*(1-erfzR(1/E45*F45^0.5,G45*F45^0.5)))/E45/G45)),1-((1/E45+G45)*EXP((1/E45+G45)^2*F45)*ERFC((1/E45+G45)*F45^0.5)-(1/E45-G45)*EXP((1/E45-G45)^2*F45)*ERFC((1/E45-G45)*F45^0.5))/2/G45) -> 0.3487044782
A46: 81 | B46: 6.36 | C46: 6.00592 | D46: =B46*'PRC model'!$B$35+'PRC model'!$C$35 -> 4.45930366 | E46: 8.156238007 | F46: ='PRC model'!$A$35*t*86400/10^D46/Lo^2 -> 1.170025199 | G46: 0.3279838788 | H46: =IF(E46>1,1-(EXP((1/E46^2-G46^2)*F46)*((COS(G46/E46*F46*2)*(1-erfzR(1/E46*F46^0.5,G46*F46^0.5))-SIN(G46/E46*F46*2)*(-erfzI(1/E46*F46^0.5,G46*F46^0.5)))+(COS(G46/E46*F46*2)*(-erfzI(1/E46*F46^0.5,G46*F46^0.5))+SIN(G46/E46*F46*2)*(1-erfzR(1/E46*F46^0.5,G46*F46^0.5)))/E46/G46)),1-((1/E46+G46)*EXP((1/E46+G46)^2*F46)*ERFC((1/E46+G46)*F46^0.5)-(1/E46-G46)*EXP((1/E46-G46)^2*F46)*ERFC((1/E46-G46)*F46^0.5))/2/G46) -> 0.3332235464
A47: 136 | B47: 6.22 | C47: 5.87334 | D47: =B47*'PRC model'!$B$35+'PRC model'!$C$35 -> 4.209586328 | E47: 10.68137646 | F47: ='PRC model'!$A$35*t*86400/10^D47/Lo^2 -> 2.079277944 | G47: 0.2913005684 | H47: =IF(E47>1,1-(EXP((1/E47^2-G47^2)*F47)*((COS(G47/E47*F47*2)*(1-erfzR(1/E47*F47^0.5,G47*F47^0.5))-SIN(G47/E47*F47*2)*(-erfzI(1/E47*F47^0.5,G47*F47^0.5)))+(COS(G47/E47*F47*2)*(-erfzI(1/E47*F47^0.5,G47*F47^0.5))+SIN(G47/E47*F47*2)*(1-erfzR(1/E47*F47^0.5,G47*F47^0.5)))/E47/G47)),1-((1/E47+G47)*EXP((1/E47+G47)^2*F47)*ERFC((1/E47+G47)*F47^0.5)-(1/E47-G47)*EXP((1/E47-G47)^2*F47)*ERFC((1/E47-G47)*F47^0.5))/2/G47) -> 0.3660370077
A48: 110 | B48: 6.48 | C48: 6.11956 | D48: =B48*'PRC model'!$B$35+'PRC model'!$C$35 -> 4.673347087 | E48: 6.472714677 | F48: ='PRC model'!$A$35*t*86400/10^D48/Lo^2 -> 0.71474609 | G48: 0.3614222955 | H48: =IF(E48>1,1-(EXP((1/E48^2-G48^2)*F48)*((COS(G48/E48*F48*2)*(1-erfzR(1/E48*F48^0.5,G48*F48^0.5))-SIN(G48/E48*F48*2)*(-erfzI(1/E48*F48^0.5,G48*F48^0.5)))+(COS(G48/E48*F48*2)*(-erfzI(1/E48*F48^0.5,G48*F48^0.5))+SIN(G48/E48*F48*2)*(1-erfzR(1/E48*F48^0.5,G48*F48^0.5)))/E48/G48)),1-((1/E48+G48)*EXP((1/E48+G48)^2*F48)*ERFC((1/E48+G48)*F48^0.5)-(1/E48-G48)*EXP((1/E48-G48)^2*F48)*ERFC((1/E48-G48)*F48^0.5))/2/G48) -> 0.3104862764
A49: 77 | B49: 6.36 | C49: 6.00592 | D49: =B49*'PRC model'!$B$35+'PRC model'!$C$35 -> 4.45930366 | E49: 8.156238007 | F49: ='PRC model'!$A$35*t*86400/10^D49/Lo^2 -> 1.170025199 | G49: 0.3279838788 | H49: =IF(E49>1,1-(EXP((1/E49^2-G49^2)*F49)*((COS(G49/E49*F49*2)*(1-erfzR(1/E49*F49^0.5,G49*F49^0.5))-SIN(G49/E49*F49*2)*(-erfzI(1/E49*F49^0.5,G49*F49^0.5)))+(COS(G49/E49*F49*2)*(-erfzI(1/E49*F49^0.5,G49*F49^0.5))+SIN(G49/E49*F49*2)*(1-erfzR(1/E49*F49^0.5,G49*F49^0.5)))/E49/G49)),1-((1/E49+G49)*EXP((1/E49+G49)^2*F49)*ERFC((1/E49+G49)*F49^0.5)-(1/E49-G49)*EXP((1/E49-G49)^2*F49)*ERFC((1/E49-G49)*F49^0.5))/2/G49) -> 0.3332235464
A50: 82 | B50: 6.2 | C50: 5.8544 | D50: =B50*'PRC model'!$B$35+'PRC model'!$C$35 -> 4.173912424 | E50: 11.10097505 | F50: ='PRC model'!$A$35*t*86400/10^D50/Lo^2 -> 2.257285289 | G50: 0.2862994559 | H50: =IF(E50>1,1-(EXP((1/E50^2-G50^2)*F50)*((COS(G50/E50*F50*2)*(1-erfzR(1/E50*F50^0.5,G50*F50^0.5))-SIN(G50/E50*F50*2)*(-erfzI(1/E50*F50^0.5,G50*F50^0.5)))+(COS(G50/E50*F50*2)*(-erfzI(1/E50*F50^0.5,G50*F50^0.5))+SIN(G50/E50*F50*2)*(1-erfzR(1/E50*F50^0.5,G50*F50^0.5)))/E50/G50)),1-((1/E50+G50)*EXP((1/E50+G50)^2*F50)*ERFC((1/E50+G50)*F50^0.5)-(1/E50-G50)*EXP((1/E50-G50)^2*F50)*ERFC((1/E50-G50)*F50^0.5))/2/G50) -> 0.3713541941
A51: 151 | B51: 6.64 | C51: 6.27108 | D51: =B51*'PRC model'!$B$35+'PRC model'!$C$35 -> 4.958738323 | E51: 4.755708506 | F51: ='PRC model'!$A$35*t*86400/10^D51/Lo^2 -> 0.3704764037 | G51: 0.4075029073 | H51: =IF(E51>1,1-(EXP((1/E51^2-G51^2)*F51)*((COS(G51/E51*F51*2)*(1-erfzR(1/E51*F51^0.5,G51*F51^0.5))-SIN(G51/E51*F51*2)*(-erfzI(1/E51*F51^0.5,G51*F51^0.5)))+(COS(G51/E51*F51*2)*(-erfzI(1/E51*F51^0.5,G51*F51^0.5))+SIN(G51/E51*F51*2)*(1-erfzR(1/E51*F51^0.5,G51*F51^0.5)))/E51/G51)),1-((1/E51+G51)*EXP((1/E51+G51)^2*F51)*ERFC((1/E51+G51)*F51^0.5)-(1/E51-G51)*EXP((1/E51-G51)^2*F51)*ERFC((1/E51-G51)*F51^0.5))/2/G51) -> 0.2863873469
A52: 135 | B52: 6.64 | C52: 6.27108 | D52: =B52*'PRC model'!$B$35+'PRC model'!$C$35 -> 4.958738323 | E52: 4.755708506 | F52: ='PRC model'!$A$35*t*86400/10^D52/Lo^2 -> 0.3704764037 | G52: 0.4075029073 | H52: =IF(E52>1,1-(EXP((1/E52^2-G52^2)*F52)*((COS(G52/E52*F52*2)*(1-erfzR(1/E52*F52^0.5,G52*F52^0.5))-SIN(G52/E52*F52*2)*(-erfzI(1/E52*F52^0.5,G52*F52^0.5)))+(COS(G52/E52*F52*2)*(-erfzI(1/E52*F52^0.5,G52*F52^0.5))+SIN(G52/E52*F52*2)*(1-erfzR(1/E52*F52^0.5,G52*F52^0.5)))/E52/G52)),1-((1/E52+G52)*EXP((1/E52+G52)^2*F52)*ERFC((1/E52+G52)*F52^0.5)-(1/E52-G52)*EXP((1/E52-G52)^2*F52)*ERFC((1/E52-G52)*F52^0.5))/2/G52) -> 0.2863873469
A53: 144 | B53: 6.67 | C53: 6.29949 | D53: =B53*'PRC model'!$B$35+'PRC model'!$C$35 -> 5.01224918 | E53: 4.488635817 | F53: ='PRC model'!$A$35*t*86400/10^D53/Lo^2 -> 0.3275289519 | G53: 0.4161150725 | H53: =IF(E53>1,1-(EXP((1/E53^2-G53^2)*F53)*((COS(G53/E53*F53*2)*(1-erfzR(1/E53*F53^0.5,G53*F53^0.5))-SIN(G53/E53*F53*2)*(-erfzI(1/E53*F53^0.5,G53*F53^0.5)))+(COS(G53/E53*F53*2)*(-erfzI(1/E53*F53^0.5,G53*F53^0.5))+SIN(G53/E53*F53*2)*(1-erfzR(1/E53*F53^0.5,G53*F53^0.5)))/E53/G53)),1-((1/E53+G53)*EXP((1/E53+G53)^2*F53)*ERFC((1/E53+G53)*F53^0.5)-(1/E53-G53)*EXP((1/E53-G53)^2*F53)*ERFC((1/E53-G53)*F53^0.5))/2/G53) -> 0.2825313465
A54: 107 | B54: 6.71 | C54: 6.33737 | D54: =B54*'PRC model'!$B$35+'PRC model'!$C$35 -> 5.083596989 | E54: 4.15572271 | F54: ='PRC model'!$A$35*t*86400/10^D54/Lo^2 -> 0.277908536 | G54: 0.4274672586 | H54: =IF(E54>1,1-(EXP((1/E54^2-G54^2)*F54)*((COS(G54/E54*F54*2)*(1-erfzR(1/E54*F54^0.5,G54*F54^0.5))-SIN(G54/E54*F54*2)*(-erfzI(1/E54*F54^0.5,G54*F54^0.5)))+(COS(G54/E54*F54*2)*(-erfzI(1/E54*F54^0.5,G54*F54^0.5))+SIN(G54/E54*F54*2)*(1-erfzR(1/E54*F54^0.5,G54*F54^0.5)))/E54/G54)),1-((1/E54+G54)*EXP((1/E54+G54)^2*F54)*ERFC((1/E54+G54)*F54^0.5)-(1/E54-G54)*EXP((1/E54-G54)^2*F54)*ERFC((1/E54-G54)*F54^0.5))/2/G54) -> 0.2776734346
A55: 123 | B55: 6.74 | C55: 6.36578 | D55: =B55*'PRC model'!$B$35+'PRC model'!$C$35 -> 5.137107845 | E55: 3.922344226 | F55: ='PRC model'!$A$35*t*86400/10^D55/Lo^2 -> 0.245692008 | G55: 0.4358328694 | H55: =IF(E55>1,1-(EXP((1/E55^2-G55^2)*F55)*((COS(G55/E55*F55*2)*(1-erfzR(1/E55*F55^0.5,G55*F55^0.5))-SIN(G55/E55*F55*2)*(-erfzI(1/E55*F55^0.5,G55*F55^0.5)))+(COS(G55/E55*F55*2)*(-erfzI(1/E55*F55^0.5,G55*F55^0.5))+SIN(G55/E55*F55*2)*(1-erfzR(1/E55*F55^0.5,G55*F55^0.5)))/E55/G55)),1-((1/E55+G55)*EXP((1/E55+G55)^2*F55)*ERFC((1/E55+G55)*F55^0.5)-(1/E55-G55)*EXP((1/E55-G55)^2*F55)*ERFC((1/E55-G55)*F55^0.5))/2/G55) -> 0.2742300586
A56: 149 | B56: 6.67 | C56: 6.29949 | D56: =B56*'PRC model'!$B$35+'PRC model'!$C$35 -> 5.01224918 | E56: 4.488635817 | F56: ='PRC model'!$A$35*t*86400/10^D56/Lo^2 -> 0.3275289519 | G56: 0.4161150725 | H56: =IF(E56>1,1-(EXP((1/E56^2-G56^2)*F56)*((COS(G56/E56*F56*2)*(1-erfzR(1/E56*F56^0.5,G56*F56^0.5))-SIN(G56/E56*F56*2)*(-erfzI(1/E56*F56^0.5,G56*F56^0.5)))+(COS(G56/E56*F56*2)*(-erfzI(1/E56*F56^0.5,G56*F56^0.5))+SIN(G56/E56*F56*2)*(1-erfzR(1/E56*F56^0.5,G56*F56^0.5)))/E56/G56)),1-((1/E56+G56)*EXP((1/E56+G56)^2*F56)*ERFC((1/E56+G56)*F56^0.5)-(1/E56-G56)*EXP((1/E56-G56)^2*F56)*ERFC((1/E56-G56)*F56^0.5))/2/G56) -> 0.2825313465
A57: 118 | B57: 6.74 | C57: 6.36578 | D57: =B57*'PRC model'!$B$35+'PRC model'!$C$35 -> 5.137107845 | E57: 3.922344226 | F57: ='PRC model'!$A$35*t*86400/10^D57/Lo^2 -> 0.245692008 | G57: 0.4358328694 | H57: =IF(E57>1,1-(EXP((1/E57^2-G57^2)*F57)*((COS(G57/E57*F57*2)*(1-erfzR(1/E57*F57^0.5,G57*F57^0.5))-SIN(G57/E57*F57*2)*(-erfzI(1/E57*F57^0.5,G57*F57^0.5)))+(COS(G57/E57*F57*2)*(-erfzI(1/E57*F57^0.5,G57*F57^0.5))+SIN(G57/E57*F57*2)*(1-erfzR(1/E57*F57^0.5,G57*F57^0.5)))/E57/G57)),1-((1/E57+G57)*EXP((1/E57+G57)^2*F57)*ERFC((1/E57+G57)*F57^0.5)-(1/E57-G57)*EXP((1/E57-G57)^2*F57)*ERFC((1/E57-G57)*F57^0.5))/2/G57) -> 0.2742300586
A58: 134 | B58: 6.55 | C58: 6.18585 | D58: =B58*'PRC model'!$B$35+'PRC model'!$C$35 -> 4.798205753 | E58: 5.656109356 | F58: ='PRC model'!$A$35*t*86400/10^D58/Lo^2 -> 0.5361584099 | G58: 0.3814993377 | H58: =IF(E58>1,1-(EXP((1/E58^2-G58^2)*F58)*((COS(G58/E58*F58*2)*(1-erfzR(1/E58*F58^0.5,G58*F58^0.5))-SIN(G58/E58*F58*2)*(-erfzI(1/E58*F58^0.5,G58*F58^0.5)))+(COS(G58/E58*F58*2)*(-erfzI(1/E58*F58^0.5,G58*F58^0.5))+SIN(G58/E58*F58*2)*(1-erfzR(1/E58*F58^0.5,G58*F58^0.5)))/E58/G58)),1-((1/E58+G58)*EXP((1/E58+G58)^2*F58)*ERFC((1/E58+G58)*F58^0.5)-(1/E58-G58)*EXP((1/E58-G58)^2*F58)*ERFC((1/E58-G58)*F58^0.5))/2/G58) -> 0.2991587027
A59: 146 | B59: 6.89 | C59: 6.50783 | D59: =B59*'PRC model'!$B$35+'PRC model'!$C$35 -> 5.404662129 | E59: 2.937929845 | F59: ='PRC model'!$A$35*t*86400/10^D59/Lo^2 -> 0.1326895575 | G59: 0.4738355102 | H59: =IF(E59>1,1-(EXP((1/E59^2-G59^2)*F59)*((COS(G59/E59*F59*2)*(1-erfzR(1/E59*F59^0.5,G59*F59^0.5))-SIN(G59/E59*F59*2)*(-erfzI(1/E59*F59^0.5,G59*F59^0.5)))+(COS(G59/E59*F59*2)*(-erfzI(1/E59*F59^0.5,G59*F59^0.5))+SIN(G59/E59*F59*2)*(1-erfzR(1/E59*F59^0.5,G59*F59^0.5)))/E59/G59)),1-((1/E59+G59)*EXP((1/E59+G59)^2*F59)*ERFC((1/E59+G59)*F59^0.5)-(1/E59-G59)*EXP((1/E59-G59)^2*F59)*ERFC((1/E59-G59)*F59^0.5))/2/G59) -> 0.2592633763
A60: 153 | B60: 6.92 | C60: 6.53624 | D60: =B60*'PRC model'!$B$35+'PRC model'!$C$35 -> 5.458172986 | E60: 2.772940586 | F60: ='PRC model'!$A$35*t*86400/10^D60/Lo^2 -> 0.1173075296 | G60: 0.4801827192 | H60: =IF(E60>1,1-(EXP((1/E60^2-G60^2)*F60)*((COS(G60/E60*F60*2)*(1-erfzR(1/E60*F60^0.5,G60*F60^0.5))-SIN(G60/E60*F60*2)*(-erfzI(1/E60*F60^0.5,G60*F60^0.5)))+(COS(G60/E60*F60*2)*(-erfzI(1/E60*F60^0.5,G60*F60^0.5))+SIN(G60/E60*F60*2)*(1-erfzR(1/E60*F60^0.5,G60*F60^0.5)))/E60/G60)),1-((1/E60+G60)*EXP((1/E60+G60)^2*F60)*ERFC((1/E60+G60)*F60^0.5)-(1/E60-G60)*EXP((1/E60-G60)^2*F60)*ERFC((1/E60-G60)*F60^0.5))/2/G60) -> 0.2566644569
A61: 132 | B61: 6.58 | C61: 6.21426 | D61: =B61*'PRC model'!$B$35+'PRC model'!$C$35 -> 4.851716609 | E61: 5.338471651 | F61: ='PRC model'!$A$35*t*86400/10^D61/Lo^2 -> 0.4740042828 | G61: 0.3901678147 | H61: =IF(E61>1,1-(EXP((1/E61^2-G61^2)*F61)*((COS(G61/E61*F61*2)*(1-erfzR(1/E61*F61^0.5,G61*F61^0.5))-SIN(G61/E61*F61*2)*(-erfzI(1/E61*F61^0.5,G61*F61^0.5)))+(COS(G61/E61*F61*2)*(-erfzI(1/E61*F61^0.5,G61*F61^0.5))+SIN(G61/E61*F61*2)*(1-erfzR(1/E61*F61^0.5,G61*F61^0.5)))/E61/G61)),1-((1/E61+G61)*EXP((1/E61+G61)^2*F61)*ERFC((1/E61+G61)*F61^0.5)-(1/E61-G61)*EXP((1/E61-G61)^2*F61)*ERFC((1/E61-G61)*F61^0.5))/2/G61) -> 0.2946902337
A62: 105 | B62: 6.65 | C62: 6.28055 | D62: =B62*'PRC model'!$B$35+'PRC model'!$C$35 -> 4.976575275 | E62: 4.664963769 | F62: ='PRC model'!$A$35*t*86400/10^D62/Lo^2 -> 0.3555687623 | G62: 0.4103803596 | H62: =IF(E62>1,1-(EXP((1/E62^2-G62^2)*F62)*((COS(G62/E62*F62*2)*(1-erfzR(1/E62*F62^0.5,G62*F62^0.5))-SIN(G62/E62*F62*2)*(-erfzI(1/E62*F62^0.5,G62*F62^0.5)))+(COS(G62/E62*F62*2)*(-erfzI(1/E62*F62^0.5,G62*F62^0.5))+SIN(G62/E62*F62*2)*(1-erfzR(1/E62*F62^0.5,G62*F62^0.5)))/E62/G62)),1-((1/E62+G62)*EXP((1/E62+G62)^2*F62)*ERFC((1/E62+G62)*F62^0.5)-(1/E62-G62)*EXP((1/E62-G62)^2*F62)*ERFC((1/E62-G62)*F62^0.5))/2/G62) -> 0.2850810305
A63: 141 | B63: 6.82 | C63: 6.44154 | D63: =B63*'PRC model'!$B$35+'PRC model'!$C$35 -> 5.279803463 | E63: 3.362095821 | F63: ='PRC model'!$A$35*t*86400/10^D63/Lo^2 -> 0.1768867944 | G63: 0.4571288897 | H63: =IF(E63>1,1-(EXP((1/E63^2-G63^2)*F63)*((COS(G63/E63*F63*2)*(1-erfzR(1/E63*F63^0.5,G63*F63^0.5))-SIN(G63/E63*F63*2)*(-erfzI(1/E63*F63^0.5,G63*F63^0.5)))+(COS(G63/E63*F63*2)*(-erfzI(1/E63*F63^0.5,G63*F63^0.5))+SIN(G63/E63*F63*2)*(1-erfzR(1/E63*F63^0.5,G63*F63^0.5)))/E63/G63)),1-((1/E63+G63)*EXP((1/E63+G63)^2*F63)*ERFC((1/E63+G63)*F63^0.5)-(1/E63-G63)*EXP((1/E63-G63)^2*F63)*ERFC((1/E63-G63)*F63^0.5))/2/G63) -> 0.2658125736
A64: 179 | B64: 6.73 | C64: 6.35631 | D64: =B64*'PRC model'!$B$35+'PRC model'!$C$35 -> 5.119270893 | E64: 3.998643231 | F64: ='PRC model'!$A$35*t*86400/10^D64/Lo^2 -> 0.2559929364 | G64: 0.4330616656 | H64: =IF(E64>1,1-(EXP((1/E64^2-G64^2)*F64)*((COS(G64/E64*F64*2)*(1-erfzR(1/E64*F64^0.5,G64*F64^0.5))-SIN(G64/E64*F64*2)*(-erfzI(1/E64*F64^0.5,G64*F64^0.5)))+(COS(G64/E64*F64*2)*(-erfzI(1/E64*F64^0.5,G64*F64^0.5))+SIN(G64/E64*F64*2)*(1-erfzR(1/E64*F64^0.5,G64*F64^0.5)))/E64/G64)),1-((1/E64+G64)*EXP((1/E64+G64)^2*F64)*ERFC((1/E64+G64)*F64^0.5)-(1/E64-G64)*EXP((1/E64-G64)^2*F64)*ERFC((1/E64-G64)*F64^0.5))/2/G64) -> 0.2753594887
A65: 163 | B65: 6.99 | C65: 6.60253 | D65: =B65*'PRC model'!$B$35+'PRC model'!$C$35 -> 5.583031652 | E65: 2.423103129 | F65: ='PRC model'!$A$35*t*86400/10^D65/Lo^2 -> 0.08799686971 | G65: 0.4923186504 | H65: =IF(E65>1,1-(EXP((1/E65^2-G65^2)*F65)*((COS(G65/E65*F65*2)*(1-erfzR(1/E65*F65^0.5,G65*F65^0.5))-SIN(G65/E65*F65*2)*(-erfzI(1/E65*F65^0.5,G65*F65^0.5)))+(COS(G65/E65*F65*2)*(-erfzI(1/E65*F65^0.5,G65*F65^0.5))+SIN(G65/E65*F65*2)*(1-erfzR(1/E65*F65^0.5,G65*F65^0.5)))/E65/G65)),1-((1/E65+G65)*EXP((1/E65+G65)^2*F65)*ERFC((1/E65+G65)*F65^0.5)-(1/E65-G65)*EXP((1/E65-G65)^2*F65)*ERFC((1/E65-G65)*F65^0.5))/2/G65) -> 0.2510352756
A66: 138 | B66: 6.83 | C66: 6.45101 | D66: =B66*'PRC model'!$B$35+'PRC model'!$C$35 -> 5.297640416 | E66: 3.297942919 | F66: ='PRC model'!$A$35*t*86400/10^D66/Lo^2 -> 0.1697690269 | G66: 0.4596491737 | H66: =IF(E66>1,1-(EXP((1/E66^2-G66^2)*F66)*((COS(G66/E66*F66*2)*(1-erfzR(1/E66*F66^0.5,G66*F66^0.5))-SIN(G66/E66*F66*2)*(-erfzI(1/E66*F66^0.5,G66*F66^0.5)))+(COS(G66/E66*F66*2)*(-erfzI(1/E66*F66^0.5,G66*F66^0.5))+SIN(G66/E66*F66*2)*(1-erfzR(1/E66*F66^0.5,G66*F66^0.5)))/E66/G66)),1-((1/E66+G66)*EXP((1/E66+G66)^2*F66)*ERFC((1/E66+G66)*F66^0.5)-(1/E66-G66)*EXP((1/E66-G66)^2*F66)*ERFC((1/E66-G66)*F66^0.5))/2/G66) -> 0.2648329643
A67: 158 | B67: 7.02 | C67: 6.63094 | D67: =B67*'PRC model'!$B$35+'PRC model'!$C$35 -> 5.636542508 | E67: =10^C67*(Lo^2-Li^2)/10^D67/Lo^2 -> 2.287025683 | F67: ='PRC model'!$A$35*t*86400/10^D67/Lo^2 -> 0.0777958386 | G67: 0.4960467003 | H67: =IF(E67>1,1-(EXP((1/E67^2-G67^2)*F67)*((COS(G67/E67*F67*2)*(1-erfzR(1/E67*F67^0.5,G67*F67^0.5))-SIN(G67/E67*F67*2)*(-erfzI(1/E67*F67^0.5,G67*F67^0.5)))+(COS(G67/E67*F67*2)*(-erfzI(1/E67*F67^0.5,G67*F67^0.5))+SIN(G67/E67*F67*2)*(1-erfzR(1/E67*F67^0.5,G67*F67^0.5)))/E67/G67)),1-((1/E67+G67)*EXP((1/E67+G67)^2*F67)*ERFC((1/E67+G67)*F67^0.5)-(1/E67-G67)*EXP((1/E67-G67)^2*F67)*ERFC((1/E67-G67)*F67^0.5))/2/G67) -> 0.2487941533
A68: 178 | B68: 7.14 | C68: 6.74458 | D68: =B68*'PRC model'!$B$35+'PRC model'!$C$35 -> 5.850585935 | E68: 1.814962326 | F68: ='PRC model'!$A$35*t*86400/10^D68/Lo^2 -> 0.04752399479 | G68: =IF(E68>1,(1/E68-1/E68^2)^0.5,(1/E68^2-1/E68)^0.5) -> 0.4973946982 | H68: =IF(E68>1,1-(EXP((1/E68^2-G68^2)*F68)*((COS(G68/E68*F68*2)*(1-erfzR(1/E68*F68^0.5,G68*F68^0.5))-SIN(G68/E68*F68*2)*(-erfzI(1/E68*F68^0.5,G68*F68^0.5)))+(COS(G68/E68*F68*2)*(-erfzI(1/E68*F68^0.5,G68*F68^0.5))+SIN(G68/E68*F68*2)*(1-erfzR(1/E68*F68^0.5,G68*F68^0.5)))/E68/G68)),1-((1/E68+G68)*EXP((1/E68+G68)^2*F68)*ERFC((1/E68+G68)*F68^0.5)-(1/E68-G68)*EXP((1/E68-G68)^2*F68)*ERFC((1/E68-G68)*F68^0.5))/2/G68) -> 0.2407215283
A69: 187 | B69: 7.17 | C69: 6.77299 | D69: =B69*'PRC model'!$B$35+'PRC model'!$C$35 -> 5.904096792 | E69: 1.713037057 | F69: ='PRC model'!$A$35*t*86400/10^D69/Lo^2 -> 0.04201477894 | G69: 0.4929345881 | H69: =IF(E69>1,1-(EXP((1/E69^2-G69^2)*F69)*((COS(G69/E69*F69*2)*(1-erfzR(1/E69*F69^0.5,G69*F69^0.5))-SIN(G69/E69*F69*2)*(-erfzI(1/E69*F69^0.5,G69*F69^0.5)))+(COS(G69/E69*F69*2)*(-erfzI(1/E69*F69^0.5,G69*F69^0.5))+SIN(G69/E69*F69*2)*(1-erfzR(1/E69*F69^0.5,G69*F69^0.5)))/E69/G69)),1-((1/E69+G69)*EXP((1/E69+G69)^2*F69)*ERFC((1/E69+G69)*F69^0.5)-(1/E69-G69)*EXP((1/E69-G69)^2*F69)*ERFC((1/E69-G69)*F69^0.5))/2/G69) -> 0.2389014792
A70: 183 | B70: 7.2 | C70: 6.8014 | D70: =B70*'PRC model'!$B$35+'PRC model'!$C$35 -> 5.957607649 | E70: 1.616835742 | F70: ='PRC model'!$A$35*t*86400/10^D70/Lo^2 -> 0.03714421856 | G70: 0.4857567723 | H70: =IF(E70>1,1-(EXP((1/E70^2-G70^2)*F70)*((COS(G70/E70*F70*2)*(1-erfzR(1/E70*F70^0.5,G70*F70^0.5))-SIN(G70/E70*F70*2)*(-erfzI(1/E70*F70^0.5,G70*F70^0.5)))+(COS(G70/E70*F70*2)*(-erfzI(1/E70*F70^0.5,G70*F70^0.5))+SIN(G70/E70*F70*2)*(1-erfzR(1/E70*F70^0.5,G70*F70^0.5)))/E70/G70)),1-((1/E70+G70)*EXP((1/E70+G70)^2*F70)*ERFC((1/E70+G70)*F70^0.5)-(1/E70-G70)*EXP((1/E70-G70)^2*F70)*ERFC((1/E70-G70)*F70^0.5))/2/G70) -> 0.2371516693
A71: 128 | B71: 6.74 | C71: 6.36578 | D71: =B71*'PRC model'!$B$35+'PRC model'!$C$35 -> 5.137107845 | E71: 3.922344226 | F71: ='PRC model'!$A$35*t*86400/10^D71/Lo^2 -> 0.245692008 | G71: 0.4358328694 | H71: =IF(E71>1,1-(EXP((1/E71^2-G71^2)*F71)*((COS(G71/E71*F71*2)*(1-erfzR(1/E71*F71^0.5,G71*F71^0.5))-SIN(G71/E71*F71*2)*(-erfzI(1/E71*F71^0.5,G71*F71^0.5)))+(COS(G71/E71*F71*2)*(-erfzI(1/E71*F71^0.5,G71*F71^0.5))+SIN(G71/E71*F71*2)*(1-erfzR(1/E71*F71^0.5,G71*F71^0.5)))/E71/G71)),1-((1/E71+G71)*EXP((1/E71+G71)^2*F71)*ERFC((1/E71+G71)*F71^0.5)-(1/E71-G71)*EXP((1/E71-G71)^2*F71)*ERFC((1/E71-G71)*F71^0.5))/2/G71) -> 0.2742300586
A72: 167 | B72: 7.27 | C72: 6.86769 | D72: =B72*'PRC model'!$B$35+'PRC model'!$C$35 -> 6.082466315 | E72: 1.412853837 | F72: ='PRC model'!$A$35*t*86400/10^D72/Lo^2 -> 0.0278633006 | G72: 0.4547795496 | H72: =IF(E72>1,1-(EXP((1/E72^2-G72^2)*F72)*((COS(G72/E72*F72*2)*(1-erfzR(1/E72*F72^0.5,G72*F72^0.5))-SIN(G72/E72*F72*2)*(-erfzI(1/E72*F72^0.5,G72*F72^0.5)))+(COS(G72/E72*F72*2)*(-erfzI(1/E72*F72^0.5,G72*F72^0.5))+SIN(G72/E72*F72*2)*(1-erfzR(1/E72*F72^0.5,G72*F72^0.5)))/E72/G72)),1-((1/E72+G72)*EXP((1/E72+G72)^2*F72)*ERFC((1/E72+G72)*F72^0.5)-(1/E72-G72)*EXP((1/E72-G72)^2*F72)*ERFC((1/E72-G72)*F72^0.5))/2/G72) -> 0.2333195149
A73: 174 | B73: 7.11 | C73: 6.71617 | D73: =B73*'PRC model'!$B$35+'PRC model'!$C$35 -> 5.797075079 | E73: 1.922952123 | F73: ='PRC model'!$A$35*t*86400/10^D73/Lo^2 -> 0.05375561024 | G73: 0.4995984877 | H73: =IF(E73>1,1-(EXP((1/E73^2-G73^2)*F73)*((COS(G73/E73*F73*2)*(1-erfzR(1/E73*F73^0.5,G73*F73^0.5))-SIN(G73/E73*F73*2)*(-erfzI(1/E73*F73^0.5,G73*F73^0.5)))+(COS(G73/E73*F73*2)*(-erfzI(1/E73*F73^0.5,G73*F73^0.5))+SIN(G73/E73*F73*2)*(1-erfzR(1/E73*F73^0.5,G73*F73^0.5)))/E73/G73)),1-((1/E73+G73)*EXP((1/E73+G73)^2*F73)*ERFC((1/E73+G73)*F73^0.5)-(1/E73-G73)*EXP((1/E73-G73)^2*F73)*ERFC((1/E73-G73)*F73^0.5))/2/G73) -> 0.2426161246
A74: 177 | B74: 7.08 | C74: 6.68776 | D74: =B74*'PRC model'!$B$35+'PRC model'!$C$35 -> 5.743564222 | E74: 2.037367285 | F74: ='PRC model'!$A$35*t*86400/10^D74/Lo^2 -> 0.0608043504 | G74: 0.4999158952 | H74: =IF(E74>1,1-(EXP((1/E74^2-G74^2)*F74)*((COS(G74/E74*F74*2)*(1-erfzR(1/E74*F74^0.5,G74*F74^0.5))-SIN(G74/E74*F74*2)*(-erfzI(1/E74*F74^0.5,G74*F74^0.5)))+(COS(G74/E74*F74*2)*(-erfzI(1/E74*F74^0.5,G74*F74^0.5))+SIN(G74/E74*F74*2)*(1-erfzR(1/E74*F74^0.5,G74*F74^0.5)))/E74/G74)),1-((1/E74+G74)*EXP((1/E74+G74)^2*F74)*ERFC((1/E74+G74)*F74^0.5)-(1/E74-G74)*EXP((1/E74-G74)^2*F74)*ERFC((1/E74-G74)*F74^0.5))/2/G74) -> 0.2445898296
A75: 171 | B75: 7.11 | C75: 6.71617 | D75: =B75*'PRC model'!$B$35+'PRC model'!$C$35 -> 5.797075079 | E75: 1.922952123 | F75: ='PRC model'!$A$35*t*86400/10^D75/Lo^2 -> 0.05375561024 | G75: 0.4995984877 | H75: =IF(E75>1,1-(EXP((1/E75^2-G75^2)*F75)*((COS(G75/E75*F75*2)*(1-erfzR(1/E75*F75^0.5,G75*F75^0.5))-SIN(G75/E75*F75*2)*(-erfzI(1/E75*F75^0.5,G75*F75^0.5)))+(COS(G75/E75*F75*2)*(-erfzI(1/E75*F75^0.5,G75*F75^0.5))+SIN(G75/E75*F75*2)*(1-erfzR(1/E75*F75^0.5,G75*F75^0.5)))/E75/G75)),1-((1/E75+G75)*EXP((1/E75+G75)^2*F75)*ERFC((1/E75+G75)*F75^0.5)-(1/E75-G75)*EXP((1/E75-G75)^2*F75)*ERFC((1/E75-G75)*F75^0.5))/2/G75) -> 0.2426161246
A76: 156 | B76: 7.18 | C76: 6.78246 | D76: =B76*'PRC model'!$B$35+'PRC model'!$C$35 -> 5.921933744 | E76: 1.680350214 | F76: ='PRC model'!$A$35*t*86400/10^D76/Lo^2 -> 0.04032414155 | G76: 0.4908699623 | H76: =IF(E76>1,1-(EXP((1/E76^2-G76^2)*F76)*((COS(G76/E76*F76*2)*(1-erfzR(1/E76*F76^0.5,G76*F76^0.5))-SIN(G76/E76*F76*2)*(-erfzI(1/E76*F76^0.5,G76*F76^0.5)))+(COS(G76/E76*F76*2)*(-erfzI(1/E76*F76^0.5,G76*F76^0.5))+SIN(G76/E76*F76*2)*(1-erfzR(1/E76*F76^0.5,G76*F76^0.5)))/E76/G76)),1-((1/E76+G76)*EXP((1/E76+G76)^2*F76)*ERFC((1/E76+G76)*F76^0.5)-(1/E76-G76)*EXP((1/E76-G76)^2*F76)*ERFC((1/E76-G76)*F76^0.5))/2/G76) -> 0.2383106106
A77: 157 | B77: 7.18 | C77: 6.78246 | D77: =B77*'PRC model'!$B$35+'PRC model'!$C$35 -> 5.921933744 | E77: 1.680350214 | F77: ='PRC model'!$A$35*t*86400/10^D77/Lo^2 -> 0.04032414155 | G77: 0.4908699623 | H77: =IF(E77>1,1-(EXP((1/E77^2-G77^2)*F77)*((COS(G77/E77*F77*2)*(1-erfzR(1/E77*F77^0.5,G77*F77^0.5))-SIN(G77/E77*F77*2)*(-erfzI(1/E77*F77^0.5,G77*F77^0.5)))+(COS(G77/E77*F77*2)*(-erfzI(1/E77*F77^0.5,G77*F77^0.5))+SIN(G77/E77*F77*2)*(1-erfzR(1/E77*F77^0.5,G77*F77^0.5)))/E77/G77)),1-((1/E77+G77)*EXP((1/E77+G77)^2*F77)*ERFC((1/E77+G77)*F77^0.5)-(1/E77-G77)*EXP((1/E77-G77)^2*F77)*ERFC((1/E77-G77)*F77^0.5))/2/G77) -> 0.2383106106
A78: 173 | B78: 7.02 | C78: 6.63094 | D78: =B78*'PRC model'!$B$35+'PRC model'!$C$35 -> 5.636542508 | E78: 2.287025683 | F78: ='PRC model'!$A$35*t*86400/10^D78/Lo^2 -> 0.0777958386 | G78: 0.4960467003 | H78: =IF(E78>1,1-(EXP((1/E78^2-G78^2)*F78)*((COS(G78/E78*F78*2)*(1-erfzR(1/E78*F78^0.5,G78*F78^0.5))-SIN(G78/E78*F78*2)*(-erfzI(1/E78*F78^0.5,G78*F78^0.5)))+(COS(G78/E78*F78*2)*(-erfzI(1/E78*F78^0.5,G78*F78^0.5))+SIN(G78/E78*F78*2)*(1-erfzR(1/E78*F78^0.5,G78*F78^0.5)))/E78/G78)),1-((1/E78+G78)*EXP((1/E78+G78)^2*F78)*ERFC((1/E78+G78)*F78^0.5)-(1/E78-G78)*EXP((1/E78-G78)^2*F78)*ERFC((1/E78-G78)*F78^0.5))/2/G78) -> 0.2487941533
A79: 172 | B79: 7.33 | C79: 6.92451 | D79: =B79*'PRC model'!$B$35+'PRC model'!$C$35 -> 6.189488028 | E79: 1.258622589 | F79: ='PRC model'!$A$35*t*86400/10^D79/Lo^2 -> 0.02177764163 | G79: 0.4040524137 | H79: =IF(E79>1,1-(EXP((1/E79^2-G79^2)*F79)*((COS(G79/E79*F79*2)*(1-erfzR(1/E79*F79^0.5,G79*F79^0.5))-SIN(G79/E79*F79*2)*(-erfzI(1/E79*F79^0.5,G79*F79^0.5)))+(COS(G79/E79*F79*2)*(-erfzI(1/E79*F79^0.5,G79*F79^0.5))+SIN(G79/E79*F79*2)*(1-erfzR(1/E79*F79^0.5,G79*F79^0.5)))/E79/G79)),1-((1/E79+G79)*EXP((1/E79+G79)^2*F79)*ERFC((1/E79+G79)*F79^0.5)-(1/E79-G79)*EXP((1/E79-G79)^2*F79)*ERFC((1/E79-G79)*F79^0.5))/2/G79) -> 0.2302861524
A80: 180 | B80: 7.36 | C80: 6.95292 | D80: =B80*'PRC model'!$B$35+'PRC model'!$C$35 -> 6.242998885 | E80: 1.187940435 | F80: ='PRC model'!$A$35*t*86400/10^D80/Lo^2 -> 0.01925307001 | G80: 0.3649349425 | H80: =IF(E80>1,1-(EXP((1/E80^2-G80^2)*F80)*((COS(G80/E80*F80*2)*(1-erfzR(1/E80*F80^0.5,G80*F80^0.5))-SIN(G80/E80*F80*2)*(-erfzI(1/E80*F80^0.5,G80*F80^0.5)))+(COS(G80/E80*F80*2)*(-erfzI(1/E80*F80^0.5,G80*F80^0.5))+SIN(G80/E80*F80*2)*(1-erfzR(1/E80*F80^0.5,G80*F80^0.5)))/E80/G80)),1-((1/E80+G80)*EXP((1/E80+G80)^2*F80)*ERFC((1/E80+G80)*F80^0.5)-(1/E80-G80)*EXP((1/E80-G80)^2*F80)*ERFC((1/E80-G80)*F80^0.5))/2/G80) -> 0.2288476284
A81: 193 | B81: 7.52 | C81: 7.10444 | D81: =B81*'PRC model'!$B$35+'PRC model'!$C$35 -> 6.528390121 | E81: 0.8728174675 | F81: ='PRC model'!$A$35*t*86400/10^D81/Lo^2 -> 0.009979499345 | G81: 0.4085924196 | H81: =IF(E81>1,1-(EXP((1/E81^2-G81^2)*F81)*((COS(G81/E81*F81*2)*(1-erfzR(1/E81*F81^0.5,G81*F81^0.5))-SIN(G81/E81*F81*2)*(-erfzI(1/E81*F81^0.5,G81*F81^0.5)))+(COS(G81/E81*F81*2)*(-erfzI(1/E81*F81^0.5,G81*F81^0.5))+SIN(G81/E81*F81*2)*(1-erfzR(1/E81*F81^0.5,G81*F81^0.5)))/E81/G81)),1-((1/E81+G81)*EXP((1/E81+G81)^2*F81)*ERFC((1/E81+G81)*F81^0.5)-(1/E81-G81)*EXP((1/E81-G81)^2*F81)*ERFC((1/E81-G81)*F81^0.5))/2/G81) -> 0.2219224894
A82: 191 | B82: 7.55 | C82: 7.13285 | D82: =B82*'PRC model'!$B$35+'PRC model'!$C$35 -> 6.581900978 | E82: 0.8238014885 | F82: ='PRC model'!$A$35*t*86400/10^D82/Lo^2 -> 0.008822626565 | G82: 0.509540308 | H82: =IF(E82>1,1-(EXP((1/E82^2-G82^2)*F82)*((COS(G82/E82*F82*2)*(1-erfzR(1/E82*F82^0.5,G82*F82^0.5))-SIN(G82/E82*F82*2)*(-erfzI(1/E82*F82^0.5,G82*F82^0.5)))+(COS(G82/E82*F82*2)*(-erfzI(1/E82*F82^0.5,G82*F82^0.5))+SIN(G82/E82*F82*2)*(1-erfzR(1/E82*F82^0.5,G82*F82^0.5)))/E82/G82)),1-((1/E82+G82)*EXP((1/E82+G82)^2*F82)*ERFC((1/E82+G82)*F82^0.5)-(1/E82-G82)*EXP((1/E82-G82)^2*F82)*ERFC((1/E82-G82)*F82^0.5))/2/G82) -> 0.2207450107
A83: 170 | B83: 7.27 | C83: 6.86769 | D83: =B83*'PRC model'!$B$35+'PRC model'!$C$35 -> 6.082466315 | E83: 1.412853837 | F83: ='PRC model'!$A$35*t*86400/10^D83/Lo^2 -> 0.0278633006 | G83: 0.4547795496 | H83: =IF(E83>1,1-(EXP((1/E83^2-G83^2)*F83)*((COS(G83/E83*F83*2)*(1-erfzR(1/E83*F83^0.5,G83*F83^0.5))-SIN(G83/E83*F83*2)*(-erfzI(1/E83*F83^0.5,G83*F83^0.5)))+(COS(G83/E83*F83*2)*(-erfzI(1/E83*F83^0.5,G83*F83^0.5))+SIN(G83/E83*F83*2)*(1-erfzR(1/E83*F83^0.5,G83*F83^0.5)))/E83/G83)),1-((1/E83+G83)*EXP((1/E83+G83)^2*F83)*ERFC((1/E83+G83)*F83^0.5)-(1/E83-G83)*EXP((1/E83-G83)^2*F83)*ERFC((1/E83-G83)*F83^0.5))/2/G83) -> 0.2333195149
A84: 190 | B84: 7.46 | C84: 7.04762 | D84: =B84*'PRC model'!$B$35+'PRC model'!$C$35 -> 6.421368408 | E84: 0.9797722676 | F84: ='PRC model'!$A$35*t*86400/10^D84/Lo^2 -> 0.01276822325 | G84: 0.1451605005 | H84: =IF(E84>1,1-(EXP((1/E84^2-G84^2)*F84)*((COS(G84/E84*F84*2)*(1-erfzR(1/E84*F84^0.5,G84*F84^0.5))-SIN(G84/E84*F84*2)*(-erfzI(1/E84*F84^0.5,G84*F84^0.5)))+(COS(G84/E84*F84*2)*(-erfzI(1/E84*F84^0.5,G84*F84^0.5))+SIN(G84/E84*F84*2)*(1-erfzR(1/E84*F84^0.5,G84*F84^0.5)))/E84/G84)),1-((1/E84+G84)*EXP((1/E84+G84)^2*F84)*ERFC((1/E84+G84)*F84^0.5)-(1/E84-G84)*EXP((1/E84-G84)^2*F84)*ERFC((1/E84-G84)*F84^0.5))/2/G84) -> 0.2243843835
A85: 198 | B85: 7.62 | C85: 7.19914 | D85: =B85*'PRC model'!$B$35+'PRC model'!$C$35 -> 6.706759644 | E85: 0.7198697207 | F85: ='PRC model'!$A$35*t*86400/10^D85/Lo^2 -> 0.006618190006 | G85: 0.7352349113 | H85: =IF(E85>1,1-(EXP((1/E85^2-G85^2)*F85)*((COS(G85/E85*F85*2)*(1-erfzR(1/E85*F85^0.5,G85*F85^0.5))-SIN(G85/E85*F85*2)*(-erfzI(1/E85*F85^0.5,G85*F85^0.5)))+(COS(G85/E85*F85*2)*(-erfzI(1/E85*F85^0.5,G85*F85^0.5))+SIN(G85/E85*F85*2)*(1-erfzR(1/E85*F85^0.5,G85*F85^0.5)))/E85/G85)),1-((1/E85+G85)*EXP((1/E85+G85)^2*F85)*ERFC((1/E85+G85)*F85^0.5)-(1/E85-G85)*EXP((1/E85-G85)^2*F85)*ERFC((1/E85-G85)*F85^0.5))/2/G85) -> 0.2181222341
A86: 203 | B86: 7.65 | C86: 7.22755 | D86: =B86*'PRC model'!$B$35+'PRC model'!$C$35 -> 6.7602705 | E86: 0.6794430331 | F86: ='PRC model'!$A$35*t*86400/10^D86/Lo^2 -> 0.005850976782 | G86: 0.8332965049 | H86: =IF(E86>1,1-(EXP((1/E86^2-G86^2)*F86)*((COS(G86/E86*F86*2)*(1-erfzR(1/E86*F86^0.5,G86*F86^0.5))-SIN(G86/E86*F86*2)*(-erfzI(1/E86*F86^0.5,G86*F86^0.5)))+(COS(G86/E86*F86*2)*(-erfzI(1/E86*F86^0.5,G86*F86^0.5))+SIN(G86/E86*F86*2)*(1-erfzR(1/E86*F86^0.5,G86*F86^0.5)))/E86/G86)),1-((1/E86+G86)*EXP((1/E86+G86)^2*F86)*ERFC((1/E86+G86)*F86^0.5)-(1/E86-G86)*EXP((1/E86-G86)^2*F86)*ERFC((1/E86-G86)*F86^0.5))/2/G86) -> 0.2170472124
A87: 196 | B87: 7.65 | C87: 7.22755 | D87: =B87*'PRC model'!$B$35+'PRC model'!$C$35 -> 6.7602705 | E87: 0.6794430331 | F87: ='PRC model'!$A$35*t*86400/10^D87/Lo^2 -> 0.005850976782 | G87: 0.8332965049 | H87: =IF(E87>1,1-(EXP((1/E87^2-G87^2)*F87)*((COS(G87/E87*F87*2)*(1-erfzR(1/E87*F87^0.5,G87*F87^0.5))-SIN(G87/E87*F87*2)*(-erfzI(1/E87*F87^0.5,G87*F87^0.5)))+(COS(G87/E87*F87*2)*(-erfzI(1/E87*F87^0.5,G87*F87^0.5))+SIN(G87/E87*F87*2)*(1-erfzR(1/E87*F87^0.5,G87*F87^0.5)))/E87/G87)),1-((1/E87+G87)*EXP((1/E87+G87)^2*F87)*ERFC((1/E87+G87)*F87^0.5)-(1/E87-G87)*EXP((1/E87-G87)^2*F87)*ERFC((1/E87-G87)*F87^0.5))/2/G87) -> 0.2170472124
A88: 195 | B88: 7.56 | C88: 7.14232 | D88: =B88*'PRC model'!$B$35+'PRC model'!$C$35 -> 6.59973793 | E88: 0.8080823482 | F88: ='PRC model'!$A$35*t*86400/10^D88/Lo^2 -> 0.008467611908 | G88: 0.5421280026 | H88: =IF(E88>1,1-(EXP((1/E88^2-G88^2)*F88)*((COS(G88/E88*F88*2)*(1-erfzR(1/E88*F88^0.5,G88*F88^0.5))-SIN(G88/E88*F88*2)*(-erfzI(1/E88*F88^0.5,G88*F88^0.5)))+(COS(G88/E88*F88*2)*(-erfzI(1/E88*F88^0.5,G88*F88^0.5))+SIN(G88/E88*F88*2)*(1-erfzR(1/E88*F88^0.5,G88*F88^0.5)))/E88/G88)),1-((1/E88+G88)*EXP((1/E88+G88)^2*F88)*ERFC((1/E88+G88)*F88^0.5)-(1/E88-G88)*EXP((1/E88-G88)^2*F88)*ERFC((1/E88-G88)*F88^0.5))/2/G88) -> 0.2203599258
A89: 194 | B89: 7.8 | C89: 7.3696 | D89: =B89*'PRC model'!$B$35+'PRC model'!$C$35 -> 7.027824784 | E89: 0.5089191182 | F89: ='PRC model'!$A$35*t*86400/10^D89/Lo^2 -> 0.003159905472 | G89: 1.376980365 | H89: =IF(E89>1,1-(EXP((1/E89^2-G89^2)*F89)*((COS(G89/E89*F89*2)*(1-erfzR(1/E89*F89^0.5,G89*F89^0.5))-SIN(G89/E89*F89*2)*(-erfzI(1/E89*F89^0.5,G89*F89^0.5)))+(COS(G89/E89*F89*2)*(-erfzI(1/E89*F89^0.5,G89*F89^0.5))+SIN(G89/E89*F89*2)*(1-erfzR(1/E89*F89^0.5,G89*F89^0.5)))/E89/G89)),1-((1/E89+G89)*EXP((1/E89+G89)^2*F89)*ERFC((1/E89+G89)*F89^0.5)-(1/E89-G89)*EXP((1/E89-G89)^2*F89)*ERFC((1/E89-G89)*F89^0.5))/2/G89) -> 0.2120471446
A90: 209 | B90: 8.18 | C90: 7.72946 | D90: =B90*'PRC model'!$B$35+'PRC model'!$C$35 -> 7.70562897 | E90: 0.2447397885 | F90: ='PRC model'!$A$35*t*86400/10^D90/Lo^2 -> 0.0006635442732 | G90: 3.550943175 | H90: =IF(E90>1,1-(EXP((1/E90^2-G90^2)*F90)*((COS(G90/E90*F90*2)*(1-erfzR(1/E90*F90^0.5,G90*F90^0.5))-SIN(G90/E90*F90*2)*(-erfzI(1/E90*F90^0.5,G90*F90^0.5)))+(COS(G90/E90*F90*2)*(-erfzI(1/E90*F90^0.5,G90*F90^0.5))+SIN(G90/E90*F90*2)*(1-erfzR(1/E90*F90^0.5,G90*F90^0.5)))/E90/G90)),1-((1/E90+G90)*EXP((1/E90+G90)^2*F90)*ERFC((1/E90+G90)*F90^0.5)-(1/E90-G90)*EXP((1/E90-G90)^2*F90)*ERFC((1/E90-G90)*F90^0.5))/2/G90) -> 0.2013665254

Sheet fitted_RD
B1: PRC#
B2: ='PRC model'!B12 -> 1 | C2: ='PRC model'!C12 -> 2 | D2: ='PRC model'!D12 -> 3 | E2: ='PRC model'!E12 -> 4 | F2: ='PRC model'!F12 -> 5 | G2: ='PRC model'!G12 -> 6 | H2: ='PRC model'!H12 ->  | I2: ='PRC model'!I12 ->  | J2: ='PRC model'!J12 ->  | K2: ='PRC model'!K12 ->  | L2: ='PRC model'!L12 ->  | M2: ='PRC model'!M12 ->  | N2: ='PRC model'!N12 ->  | O2: ='PRC model'!O12 ->  | P2: ='PRC model'!P12 ->  | Q2: ='PRC model'!Q12 ->  | R2: ='PRC model'!R12 ->  | S2: ='PRC model'!S12 ->  | T2: ='PRC model'!T12 ->  | U2: ='PRC model'!U12 -> 
A3: RD(cm^2/s) | B3: -0.7010299957 | C3: -0.3612426145 | D3: -0.06124261449 | E3: 0.5387573855 | F3: 0.09897000434 | G3: 1.638757386 | H3: 2.9 | I3: -2.5 | J3: -2.4 | K3: -2.060212619 | L3: -1.5

Sheet rec_fitted_plot
A2: Compound | B2: logKow | C2: logKpw | D2: logRD | E2: fss
A3: 1 | B3: 4.46 | C3: 4.20662 | D3: =B3*'PRC model'!$B$31+'PRC model'!$C$31 -> -2.123615359 | E3: =1-EXP((10^D3)*t*86400/((Lo^2-Li^2)/2/Lo)^2/(10^C3)^2)*ERFC((10^D3) ^ 0.5*(t*86400)^ 0.5/((Lo^2-Li^2)/2/Lo)/(10^C3)) -> 0.7992949355
A4: 4 | B4: 4.65 | C4: 4.38655 | D4: =B4*'PRC model'!$B$31+'PRC model'!$C$31 -> -1.907930251 | E4: 0.7678672848
A5: 10 | B5: 4.84 | C5: 4.56648 | D5: =B5*'PRC model'!$B$31+'PRC model'!$C$31 -> -1.692245142 | E5: 0.7330171604
A6: 9 | B6: 5.06 | C6: 4.77482 | D6: =B6*'PRC model'!$B$31+'PRC model'!$C$31 -> -1.442504491 | E6: 0.6886451047
A7: 7 | B7: 5.07 | C7: 4.78429 | D7: =B7*'PRC model'!$B$31+'PRC model'!$C$31 -> -1.431152643 | E7: 0.6865336516
A8: 6 | B8: 5.06 | C8: 4.77482 | D8: =B8*'PRC model'!$B$31+'PRC model'!$C$31 -> -1.442504491 | E8: 0.6886451047
A9: 8 | B9: 5.07 | C9: 4.78429 | D9: =B9*'PRC model'!$B$31+'PRC model'!$C$31 -> -1.431152643 | E9: 0.6865336516
A10: 5 | B10: 4.97 | C10: 4.68959 | D10: =B10*'PRC model'!$B$31+'PRC model'!$C$31 -> -1.544671121 | E10: 0.7072900412
A11: 19 | B11: 5.02 | C11: 4.73694 | D11: =B11*'PRC model'!$B$31+'PRC model'!$C$31 -> -1.487911882 | E11: 0.6970124426
A12: 18 | B12: 5.24 | C12: 4.94528 | D12: =B12*'PRC model'!$B$31+'PRC model'!$C$31 -> -1.238171231 | E12: 0.6495232538
A13: 17 | B13: 5.25 | C13: 4.95475 | D13: =B13*'PRC model'!$B$31+'PRC model'!$C$31 -> -1.226819383 | E13: 0.6472852744
A14: 27 | B14: 5.44 | C14: 5.13468 | D14: =B14*'PRC model'!$B$31+'PRC model'!$C$31 -> -1.011134275 | E14: 0.6036981965
A15: 24 | B15: 5.35 | C15: 5.04945 | D15: =B15*'PRC model'!$B$31+'PRC model'!$C$31 -> -1.113300905 | E15: 0.6245803396
A16: 32 | B16: 5.44 | C16: 5.13468 | D16: =B16*'PRC model'!$B$31+'PRC model'!$C$31 -> -1.011134275 | E16: 0.6036981965
A17: 16 | B17: 5.16 | C17: 4.86952 | D17: =B17*'PRC model'!$B$31+'PRC model'!$C$31 -> -1.328986013 | E17: 0.6671927996
A18: 26 | B18: 5.66 | C18: 5.34302 | D18: =B18*'PRC model'!$B$31+'PRC model'!$C$31 -> -0.7613936232 | E18: 0.5513791559
A19: 25 | B19: 5.67 | C19: 5.35249 | D19: =B19*'PRC model'!$B$31+'PRC model'!$C$31 -> -0.7500417754 | E19: 0.5489723132
A20: 31 | B20: 5.67 | C20: 5.35249 | D20: =B20*'PRC model'!$B$31+'PRC model'!$C$31 -> -0.7500417754 | E20: 0.5489723132
A21: 28 | B21: 5.67 | C21: 5.35249 | D21: =B21*'PRC model'!$B$31+'PRC model'!$C$31 -> -0.7500417754 | E21: 0.5489723132
A22: 20 | B22: 5.57 | C22: 5.25779 | D22: =B22*'PRC model'!$B$31+'PRC model'!$C$31 -> -0.8635602533 | E22: 0.5729515597
A23: 22 | B23: 5.58 | C23: 5.26726 | D23: =B23*'PRC model'!$B$31+'PRC model'!$C$31 -> -0.8522084055 | E23: 0.5705639912
A24: 52 | B24: 5.84 | C24: 5.51348 | D24: =B24*'PRC model'!$B$31+'PRC model'!$C$31 -> -0.5570603628 | E24: 0.5079189192
A25: 47 | B25: 5.85 | C25: 5.52295 | D25: =B25*'PRC model'!$B$31+'PRC model'!$C$31 -> -0.545708515 | E25: 0.5055028229
A26: 44 | B26: 5.75 | C26: 5.42825 | D26: =B26*'PRC model'!$B$31+'PRC model'!$C$31 -> -0.659226993 | E26: 0.5296722712
A27: 42 | B27: 5.76 | C27: 5.43772 | D27: =B27*'PRC model'!$B$31+'PRC model'!$C$31 -> -0.6478751452 | E27: 0.5272559175
A28: 71 | B28: 5.98 | C28: 5.64606 | D28: =B28*'PRC model'!$B$31+'PRC model'!$C$31 -> -0.3981344937 | E28: 0.4741932717
A29: 41 | B29: 5.69 | C29: 5.37143 | D29: =B29*'PRC model'!$B$31+'PRC model'!$C$31 -> -0.7273380798 | E29: 0.5441541273
A30: 103 | B30: 6.22 | C30: 5.87334 | D30: =B30*'PRC model'!$B$31+'PRC model'!$C$31 -> -0.1256901465 | E30: 0.4175094323
A31: 40 | B31: 5.66 | C31: 5.34302 | D31: =B31*'PRC model'!$B$31+'PRC model'!$C$31 -> -0.7613936232 | E31: 0.5513791559
A32: 74 | B32: 6.2 | C32: 5.8544 | D32: =B32*'PRC model'!$B$31+'PRC model'!$C$31 -> -0.1483938421 | E32: 0.4221504033
A33: 70 | B33: 6.2 | C33: 5.8544 | D33: =B33*'PRC model'!$B$31+'PRC model'!$C$31 -> -0.1483938421 | E33: 0.4221504033
A34: 66 | B34: 6.2 | C34: 5.8544 | D34: =B34*'PRC model'!$B$31+'PRC model'!$C$31 -> -0.1483938421 | E34: 0.4221504033
A35: 95 | B35: 6.13 | C35: 5.78811 | D35: =B35*'PRC model'!$B$31+'PRC model'!$C$31 -> -0.2278567767 | E35: =1-EXP((10^D35)*t*86400/((Lo^2-Li^2)/2/Lo)^2/(10^C35)^2)*ERFC((10^D35) ^ 0.5*(t*86400)^ 0.5/((Lo^2-Li^2)/2/Lo)/(10^C35)) -> 0.4385280547
A36: 93 | B36: 6.04 | C36: 5.70288 | D36: =B36*'PRC model'!$B$31+'PRC model'!$C$31 -> -0.3300234069 | E36: 0.4598489265
A37: 56 | B37: 6.11 | C37: 5.76917 | D37: =B37*'PRC model'!$B$31+'PRC model'!$C$31 -> -0.2505604723 | E37: 0.4432425102
A38: 60 | B38: 6.11 | C38: 5.76917 | D38: =B38*'PRC model'!$B$31+'PRC model'!$C$31 -> -0.2505604723 | E38: 0.4432425102
A39: 92 | B39: 6.35 | C39: 5.99645 | D39: =B39*'PRC model'!$B$31+'PRC model'!$C$31 -> 0.02188387483 | E39: 0.3878245588
A40: 84 | B40: 6.04 | C40: 5.70288 | D40: =B40*'PRC model'!$B$31+'PRC model'!$C$31 -> -0.3300234069 | E40: 0.4598489265
A41: 101 | B41: 6.38 | C41: 6.02486 | D41: =B41*'PRC model'!$B$31+'PRC model'!$C$31 -> 0.05593941822 | E41: 0.3811050668
A42: 99 | B42: 6.39 | C42: 6.03433 | D42: =B42*'PRC model'!$B$31+'PRC model'!$C$31 -> 0.06729126602 | E42: 0.3788770567
A43: 119 | B43: 6.58 | C43: 6.21426 | D43: =B43*'PRC model'!$B$31+'PRC model'!$C$31 -> 0.2829763742 | E43: 0.3377710118
A44: 83 | B44: 6.26 | C44: 5.91122 | D44: =B44*'PRC model'!$B$31+'PRC model'!$C$31 -> -0.08028275534 | E44: 0.408283543
A45: 87 | B45: 6.29 | C45: 5.93963 | D45: =B45*'PRC model'!$B$31+'PRC model'!$C$31 -> -0.04622721195 | E45: 0.4014160215
A46: 81 | B46: 6.36 | C46: 6.00592 | D46: =B46*'PRC model'!$B$31+'PRC model'!$C$31 -> 0.03323572263 | E46: 0.3855788947
A47: 136 | B47: 6.22 | C47: 5.87334 | D47: =B47*'PRC model'!$B$31+'PRC model'!$C$31 -> -0.1256901465 | E47: 0.4175094323
A48: 110 | B48: 6.48 | C48: 6.11956 | D48: =B48*'PRC model'!$B$31+'PRC model'!$C$31 -> 0.1694578962 | E48: 0.3591052918
A49: 77 | B49: 6.36 | C49: 6.00592 | D49: =B49*'PRC model'!$B$31+'PRC model'!$C$31 -> 0.03323572263 | E49: 0.3855788947
A50: 82 | B50: 6.2 | C50: 5.8544 | D50: =B50*'PRC model'!$B$31+'PRC model'!$C$31 -> -0.1483938421 | E50: 0.4221504033
A51: 151 | B51: 6.64 | C51: 6.27108 | D51: =B51*'PRC model'!$B$31+'PRC model'!$C$31 -> 0.3510874609 | E51: 0.325314884
A52: 135 | B52: 6.64 | C52: 6.27108 | D52: =B52*'PRC model'!$B$31+'PRC model'!$C$31 -> 0.3510874609 | E52: 0.325314884
A53: 144 | B53: 6.67 | C53: 6.29949 | D53: =B53*'PRC model'!$B$31+'PRC model'!$C$31 -> 0.3851430043 | E53: 0.3191881308
A54: 107 | B54: 6.71 | C54: 6.33737 | D54: =B54*'PRC model'!$B$31+'PRC model'!$C$31 -> 0.4305503955 | E54: 0.3111269462
A55: 123 | B55: 6.74 | C55: 6.36578 | D55: =B55*'PRC model'!$B$31+'PRC model'!$C$31 -> 0.4646059389 | E55: 0.3051633584
A56: 149 | B56: 6.67 | C56: 6.29949 | D56: =B56*'PRC model'!$B$31+'PRC model'!$C$31 -> 0.3851430043 | E56: 0.3191881308
A57: 118 | B57: 6.74 | C57: 6.36578 | D57: =B57*'PRC model'!$B$31+'PRC model'!$C$31 -> 0.4646059389 | E57: 0.3051633584
A58: 134 | B58: 6.55 | C58: 6.18585 | D58: =B58*'PRC model'!$B$31+'PRC model'!$C$31 -> 0.2489208308 | E58: 0.3440976909
A59: 146 | B59: 6.89 | C59: 6.50783 | D59: =B59*'PRC model'!$B$31+'PRC model'!$C$31 -> 0.6348836559 | E59: 0.2764375368
A60: 153 | B60: 6.92 | C60: 6.53624 | D60: =B60*'PRC model'!$B$31+'PRC model'!$C$31 -> 0.6689391992 | E60: 0.2709160499
A61: 132 | B61: 6.58 | C61: 6.21426 | D61: =B61*'PRC model'!$B$31+'PRC model'!$C$31 -> 0.2829763742 | E61: 0.3377710118
A62: 105 | B62: 6.65 | C62: 6.28055 | D62: =B62*'PRC model'!$B$31+'PRC model'!$C$31 -> 0.3624393087 | E62: 0.3232650185
A63: 141 | B63: 6.82 | C63: 6.44154 | D63: =B63*'PRC model'!$B$31+'PRC model'!$C$31 -> 0.5554207213 | E63: 0.2896132907
A64: 179 | B64: 6.73 | C64: 6.35631 | D64: =B64*'PRC model'!$B$31+'PRC model'!$C$31 -> 0.4532540911 | E64: 0.3071433057
A65: 163 | B65: 6.99 | C65: 6.60253 | D65: =B65*'PRC model'!$B$31+'PRC model'!$C$31 -> 0.7484021338 | E65: 0.2583286049
A66: 138 | B66: 6.83 | C66: 6.45101 | D66: =B66*'PRC model'!$B$31+'PRC model'!$C$31 -> 0.5667725691 | E66: 0.2877061917
A67: 158 | B67: 7.02 | C67: 6.63094 | D67: =B67*'PRC model'!$B$31+'PRC model'!$C$31 -> 0.7824576772 | E67: =1-EXP((10^D67)*t*86400/((Lo^2-Li^2)/2/Lo)^2/(10^C67)^2)*ERFC((10^D67) ^ 0.5*(t*86400)^ 0.5/((Lo^2-Li^2)/2/Lo)/(10^C67)) -> 0.2530617745
A68: 178 | B68: 7.14 | C68: 6.74458 | D68: =B68*'PRC model'!$B$31+'PRC model'!$C$31 -> 0.9186798508 | E68: 0.2327669082
A69: 187 | B69: 7.17 | C69: 6.77299 | D69: =B69*'PRC model'!$B$31+'PRC model'!$C$31 -> 0.9527353942 | E69: 0.2278867751
A70: 183 | B70: 7.2 | C70: 6.8014 | D70: =B70*'PRC model'!$B$31+'PRC model'!$C$31 -> 0.9867909376 | E70: 0.223084043
A71: 128 | B71: 6.74 | C71: 6.36578 | D71: =B71*'PRC model'!$B$31+'PRC model'!$C$31 -> 0.4646059389 | E71: 0.3051633584
A72: 167 | B72: 7.27 | C72: 6.86769 | D72: =B72*'PRC model'!$B$31+'PRC model'!$C$31 -> 1.066253872 | E72: 0.2121778931
A73: 174 | B73: 7.11 | C73: 6.71617 | D73: =B73*'PRC model'!$B$31+'PRC model'!$C$31 -> 0.8846243074 | E73: 0.2377245042
A74: 177 | B74: 7.08 | C74: 6.68776 | D74: =B74*'PRC model'!$B$31+'PRC model'!$C$31 -> 0.850568764 | E74: 0.2427595652
A75: 171 | B75: 7.11 | C75: 6.71617 | D75: =B75*'PRC model'!$B$31+'PRC model'!$C$31 -> 0.8846243074 | E75: 0.2377245042
A76: 156 | B76: 7.18 | C76: 6.78246 | D76: =B76*'PRC model'!$B$31+'PRC model'!$C$31 -> 0.964087242 | E76: 0.2262772691
A77: 157 | B77: 7.18 | C77: 6.78246 | D77: =B77*'PRC model'!$B$31+'PRC model'!$C$31 -> 0.964087242 | E77: 0.2262772691
A78: 173 | B78: 7.02 | C78: 6.63094 | D78: =B78*'PRC model'!$B$31+'PRC model'!$C$31 -> 0.7824576772 | E78: 0.2530617745
A79: 172 | B79: 7.33 | C79: 6.92451 | D79: =B79*'PRC model'!$B$31+'PRC model'!$C$31 -> 1.134364959 | E79: 0.2031625776
A80: 180 | B80: 7.36 | C80: 6.95292 | D80: =B80*'PRC model'!$B$31+'PRC model'!$C$31 -> 1.168420502 | E80: 0.1987693148
A81: 193 | B81: 7.52 | C81: 7.10444 | D81: =B81*'PRC model'!$B$31+'PRC model'!$C$31 -> 1.350050067 | E81: 0.1766066993
A82: 191 | B82: 7.55 | C82: 7.13285 | D82: =B82*'PRC model'!$B$31+'PRC model'!$C$31 -> 1.38410561 | E82: 0.1726849811
A83: 170 | B83: 7.27 | C83: 6.86769 | D83: =B83*'PRC model'!$B$31+'PRC model'!$C$31 -> 1.066253872 | E83: 0.2121778931
A84: 190 | B84: 7.46 | C84: 7.04762 | D84: =B84*'PRC model'!$B$31+'PRC model'!$C$31 -> 1.28193898 | E84: 0.1846697476
A85: 198 | B85: 7.62 | C85: 7.19914 | D85: =B85*'PRC model'!$B$31+'PRC model'!$C$31 -> 1.463568545 | E85: 0.1638146436
A86: 203 | B86: 7.65 | C86: 7.22755 | D86: =B86*'PRC model'!$B$31+'PRC model'!$C$31 -> 1.497624088 | E86: 0.1601315918
A87: 196 | B87: 7.65 | C87: 7.22755 | D87: =B87*'PRC model'!$B$31+'PRC model'!$C$31 -> 1.497624088 | E87: 0.1601315918
A88: 195 | B88: 7.56 | C88: 7.14232 | D88: =B88*'PRC model'!$B$31+'PRC model'!$C$31 -> 1.395457458 | E88: 0.1713938579
A89: 194 | B89: 7.8 | C89: 7.3696 | D89: =B89*'PRC model'!$B$31+'PRC model'!$C$31 -> 1.667901805 | E89: 0.1427525293
A90: 209 | B90: 8.18 | C90: 7.72946 | D90: =B90*'PRC model'!$B$31+'PRC model'!$C$31 -> 2.099272022 | E90: 0.10588242

Sheet fitted_ke
B1: PRC#
B2: ='PRC model'!B12 -> 1 | C2: ='PRC model'!C12 -> 2 | D2: ='PRC model'!D12 -> 3 | E2: ='PRC model'!E12 -> 4 | F2: ='PRC model'!F12 -> 5 | G2: ='PRC model'!G12 -> 6 | H2: ='PRC model'!H12 ->  | I2: ='PRC model'!I12 ->  | J2: ='PRC model'!J12 ->  | K2: ='PRC model'!K12 ->  | L2: ='PRC model'!L12 ->  | M2: ='PRC model'!M12 ->  | N2: ='PRC model'!N12 ->  | O2: ='PRC model'!O12 ->  | P2: ='PRC model'!P12 ->  | Q2: ='PRC model'!Q12 ->  | R2: ='PRC model'!R12 ->  | S2: ='PRC model'!S12 ->  | T2: ='PRC model'!T12 ->  | U2: ='PRC model'!U12 -> 
A3: pke[/day] | B3: -1.566676269 | C3: -1.563825109 | D3: -1.838253806 | E3: -1.961808667 | F3: -2.250047891 | G3: -1.917799734 | H3: -2.048873074 | I3: -1.476549357 | J3: -1.766660616 | K3: -2.045021802 | L3: -2.34915259

Sheet kinetic_fitted_plot
A2: Compound | B2: logKow | C2: logke | D2: fss
A3: 1 | B3: 4.46 | C3: =B3*'PRC model'!$B$27+'PRC model'!$C$27 -> -1.200468418 | D3: =1-EXP(10^C3*t*-1) -> 0.8490537604
A4: 4 | B4: 4.65 | C4: =B4*'PRC model'!$B$27+'PRC model'!$C$27 -> -1.260939348 | D4: 0.8069991376
A5: 10 | B5: 4.84 | C5: =B5*'PRC model'!$B$27+'PRC model'!$C$27 -> -1.321410278 | D5: 0.7609864643
A6: 9 | B6: 5.06 | C6: =B6*'PRC model'!$B$27+'PRC model'!$C$27 -> -1.39142925 | D6: 0.7042158804
A7: 7 | B7: 5.07 | C7: =B7*'PRC model'!$B$27+'PRC model'!$C$27 -> -1.39461193 | D7: 0.701573362
A8: 6 | B8: 5.06 | C8: =B8*'PRC model'!$B$27+'PRC model'!$C$27 -> -1.39142925 | D8: 0.7042158804
A9: 8 | B9: 5.07 | C9: =B9*'PRC model'!$B$27+'PRC model'!$C$27 -> -1.39461193 | D9: 0.701573362
A10: 5 | B10: 4.97 | C10: =B10*'PRC model'!$B$27+'PRC model'!$C$27 -> -1.362785125 | D10: 0.7277885857
A11: 19 | B11: 5.02 | C11: =B11*'PRC model'!$B$27+'PRC model'!$C$27 -> -1.378698528 | D11: 0.714742082
A12: 18 | B12: 5.24 | C12: =B12*'PRC model'!$B$27+'PRC model'!$C$27 -> -1.448717499 | D12: 0.6561632082
A13: 17 | B13: 5.25 | C13: =B13*'PRC model'!$B$27+'PRC model'!$C$27 -> -1.45190018 | D13: 0.6534724898
A14: 27 | B14: 5.44 | C14: =B14*'PRC model'!$B$27+'PRC model'!$C$27 -> -1.51237111 | D14: 0.6022934323
A15: 24 | B15: 5.35 | C15: =B15*'PRC model'!$B$27+'PRC model'!$C$27 -> -1.483726985 | D15: 0.6265252331
A16: 32 | B16: 5.44 | C16: =B16*'PRC model'!$B$27+'PRC model'!$C$27 -> -1.51237111 | D16: 0.6022934323
A17: 16 | B17: 5.16 | C17: =B17*'PRC model'!$B$27+'PRC model'!$C$27 -> -1.423256055 | D17: 0.6776279394
A18: 26 | B18: 5.66 | C18: =B18*'PRC model'!$B$27+'PRC model'!$C$27 -> -1.582390082 | D18: 0.5437661294
A19: 25 | B19: 5.67 | C19: =B19*'PRC model'!$B$27+'PRC model'!$C$27 -> -1.585572762 | D19: 0.541144436
A20: 31 | B20: 5.67 | C20: =B20*'PRC model'!$B$27+'PRC model'!$C$27 -> -1.585572762 | D20: 0.541144436
A21: 28 | B21: 5.67 | C21: =B21*'PRC model'!$B$27+'PRC model'!$C$27 -> -1.585572762 | D21: 0.541144436
A22: 20 | B22: 5.57 | C22: =B22*'PRC model'!$B$27+'PRC model'!$C$27 -> -1.553745957 | D22: 0.5675347706
A23: 22 | B23: 5.58 | C23: =B23*'PRC model'!$B$27+'PRC model'!$C$27 -> -1.556928637 | D23: 0.564879709
A24: 52 | B24: 5.84 | C24: =B24*'PRC model'!$B$27+'PRC model'!$C$27 -> -1.639678331 | D24: 0.4973039257
A25: 47 | B25: 5.85 | C25: =B25*'PRC model'!$B$27+'PRC model'!$C$27 -> -1.642861012 | D25: 0.4947731263
A26: 44 | B26: 5.75 | C26: =B26*'PRC model'!$B$27+'PRC model'!$C$27 -> -1.611034206 | D26: 0.520332012
A27: 42 | B27: 5.76 | C27: =B27*'PRC model'!$B$27+'PRC model'!$C$27 -> -1.614216887 | D27: 0.5177520608
A28: 71 | B28: 5.98 | C28: =B28*'PRC model'!$B$27+'PRC model'!$C$27 -> -1.684235859 | D28: 0.4624347967
A29: 41 | B29: 5.69 | C29: =B29*'PRC model'!$B$27+'PRC model'!$C$27 -> -1.591938123 | D29: 0.5359138777
A30: 103 | B30: 6.22 | C30: =B30*'PRC model'!$B$27+'PRC model'!$C$27 -> -1.760620191 | D30: 0.4058338492
A31: 40 | B31: 5.66 | C31: =B31*'PRC model'!$B$27+'PRC model'!$C$27 -> -1.582390082 | D31: 0.5437661294
A32: 74 | B32: 6.2 | C32: =B32*'PRC model'!$B$27+'PRC model'!$C$27 -> -1.75425483 | D32: 0.4103833762
A33: 70 | B33: 6.2 | C33: =B33*'PRC model'!$B$27+'PRC model'!$C$27 -> -1.75425483 | D33: 0.4103833762
A34: 66 | B34: 6.2 | C34: =B34*'PRC model'!$B$27+'PRC model'!$C$27 -> -1.75425483 | D34: 0.4103833762
A35: 95 | B35: 6.13 | C35: =B35*'PRC model'!$B$27+'PRC model'!$C$27 -> -1.731976066 | D35: =1-EXP(10^C35*t*-1) -> 0.4265532122
A36: 93 | B36: 6.04 | C36: =B36*'PRC model'!$B$27+'PRC model'!$C$27 -> -1.703331942 | D36: 0.4478877615
A37: 56 | B37: 6.11 | C37: =B37*'PRC model'!$B$27+'PRC model'!$C$27 -> -1.725610705 | D37: 0.4312422307
A38: 60 | B38: 6.11 | C38: =B38*'PRC model'!$B$27+'PRC model'!$C$27 -> -1.725610705 | D38: 0.4312422307
A39: 92 | B39: 6.35 | C39: =B39*'PRC model'!$B$27+'PRC model'!$C$27 -> -1.801995038 | D39: 0.3770498555
A40: 84 | B40: 6.04 | C40: =B40*'PRC model'!$B$27+'PRC model'!$C$27 -> -1.703331942 | D40: 0.4478877615
A41: 101 | B41: 6.38 | C41: =B41*'PRC model'!$B$27+'PRC model'!$C$27 -> -1.81154308 | D41: 0.370605478
A42: 99 | B42: 6.39 | C42: =B42*'PRC model'!$B$27+'PRC model'!$C$27 -> -1.81472576 | D42: 0.3684741328
A43: 119 | B43: 6.58 | C43: =B43*'PRC model'!$B$27+'PRC model'!$C$27 -> -1.87519669 | D43: 0.3295963509
A44: 83 | B44: 6.26 | C44: =B44*'PRC model'!$B$27+'PRC model'!$C$27 -> -1.773350913 | D44: 0.3968306334
A45: 87 | B45: 6.29 | C45: =B45*'PRC model'!$B$27+'PRC model'!$C$27 -> -1.782898955 | D45: 0.3901631226
A46: 81 | B46: 6.36 | C46: =B46*'PRC model'!$B$27+'PRC model'!$C$27 -> -1.805177719 | D46: 0.3748933603
A47: 136 | B47: 6.22 | C47: =B47*'PRC model'!$B$27+'PRC model'!$C$27 -> -1.760620191 | D47: 0.4058338492
A48: 110 | B48: 6.48 | C48: =B48*'PRC model'!$B$27+'PRC model'!$C$27 -> -1.843369885 | D48: 0.3496731575
A49: 77 | B49: 6.36 | C49: =B49*'PRC model'!$B$27+'PRC model'!$C$27 -> -1.805177719 | D49: 0.3748933603
A50: 82 | B50: 6.2 | C50: =B50*'PRC model'!$B$27+'PRC model'!$C$27 -> -1.75425483 | D50: 0.4103833762
A51: 151 | B51: 6.64 | C51: =B51*'PRC model'!$B$27+'PRC model'!$C$27 -> -1.894292773 | D51: 0.3179645082
A52: 135 | B52: 6.64 | C52: =B52*'PRC model'!$B$27+'PRC model'!$C$27 -> -1.894292773 | D52: 0.3179645082
A53: 144 | B53: 6.67 | C53: =B53*'PRC model'!$B$27+'PRC model'!$C$27 -> -1.903840815 | D53: 0.3122653806
A54: 107 | B54: 6.71 | C54: =B54*'PRC model'!$B$27+'PRC model'!$C$27 -> -1.916571537 | D54: 0.3047876355
A55: 123 | B55: 6.74 | C55: =B55*'PRC model'!$B$27+'PRC model'!$C$27 -> -1.926119579 | D55: 0.2992700426
A56: 149 | B56: 6.67 | C56: =B56*'PRC model'!$B$27+'PRC model'!$C$27 -> -1.903840815 | D56: 0.3122653806
A57: 118 | B57: 6.74 | C57: =B57*'PRC model'!$B$27+'PRC model'!$C$27 -> -1.926119579 | D57: 0.2992700426
A58: 134 | B58: 6.55 | C58: =B58*'PRC model'!$B$27+'PRC model'!$C$27 -> -1.865648649 | D58: 0.3355289496
A59: 146 | B59: 6.89 | C59: =B59*'PRC model'!$B$27+'PRC model'!$C$27 -> -1.973859787 | D59: 0.2728420158
A60: 153 | B60: 6.92 | C60: =B60*'PRC model'!$B$27+'PRC model'!$C$27 -> -1.983407828 | D60: 0.2677865603
A61: 132 | B61: 6.58 | C61: =B61*'PRC model'!$B$27+'PRC model'!$C$27 -> -1.87519669 | D61: 0.3295963509
A62: 105 | B62: 6.65 | C62: =B62*'PRC model'!$B$27+'PRC model'!$C$27 -> -1.897475454 | D62: 0.3160561464
A63: 141 | B63: 6.82 | C63: =B63*'PRC model'!$B$27+'PRC model'!$C$27 -> -1.951581023 | D63: 0.2849353865
A64: 179 | B64: 6.73 | C64: =B64*'PRC model'!$B$27+'PRC model'!$C$27 -> -1.922936898 | D64: 0.3011006091
A65: 163 | B65: 6.99 | C65: =B65*'PRC model'!$B$27+'PRC model'!$C$27 -> -2.005686592 | D65: 0.2562850483
A66: 138 | B66: 6.83 | C66: =B66*'PRC model'!$B$27+'PRC model'!$C$27 -> -1.954763704 | D66: 0.2831821692
A67: 158 | B67: 7.02 | C67: =B67*'PRC model'!$B$27+'PRC model'!$C$27 -> -2.015234634 | D67: =1-EXP(10^C67*t*-1) -> 0.2514810284
A68: 178 | B68: 7.14 | C68: =B68*'PRC model'!$B$27+'PRC model'!$C$27 -> -2.0534268 | D68: 0.2330041273
A69: 187 | B69: 7.17 | C69: =B69*'PRC model'!$B$27+'PRC model'!$C$27 -> -2.062974842 | D69: 0.2285669641
A70: 183 | B70: 7.2 | C70: =B70*'PRC model'!$B$27+'PRC model'!$C$27 -> -2.072522883 | D70: 0.2242014509
A71: 128 | B71: 6.74 | C71: =B71*'PRC model'!$B$27+'PRC model'!$C$27 -> -1.926119579 | D71: 0.2992700426
A72: 167 | B72: 7.27 | C72: =B72*'PRC model'!$B$27+'PRC model'!$C$27 -> -2.094801647 | D72: 0.2142903517
A73: 174 | B73: 7.11 | C73: =B73*'PRC model'!$B$27+'PRC model'!$C$27 -> -2.043878758 | D73: 0.2375135446
A74: 177 | B74: 7.08 | C74: =B74*'PRC model'!$B$27+'PRC model'!$C$27 -> -2.034330717 | D74: 0.2420957983
A75: 171 | B75: 7.11 | C75: =B75*'PRC model'!$B$27+'PRC model'!$C$27 -> -2.043878758 | D75: 0.2375135446
A76: 156 | B76: 7.18 | C76: =B76*'PRC model'!$B$27+'PRC model'!$C$27 -> -2.066157522 | D76: 0.2271038624
A77: 157 | B77: 7.18 | C77: =B77*'PRC model'!$B$27+'PRC model'!$C$27 -> -2.066157522 | D77: 0.2271038624
A78: 173 | B78: 7.02 | C78: =B78*'PRC model'!$B$27+'PRC model'!$C$27 -> -2.015234634 | D78: 0.2514810284
A79: 172 | B79: 7.33 | C79: =B79*'PRC model'!$B$27+'PRC model'!$C$27 -> -2.11389773 | D79: 0.2060965894
A80: 180 | B80: 7.36 | C80: =B80*'PRC model'!$B$27+'PRC model'!$C$27 -> -2.123445772 | D80: 0.202102239
A81: 193 | B81: 7.52 | C81: =B81*'PRC model'!$B$27+'PRC model'!$C$27 -> -2.17436866 | D81: 0.1819197659
A82: 191 | B82: 7.55 | C82: =B82*'PRC model'!$B$27+'PRC model'!$C$27 -> -2.183916702 | D82: 0.1783399418
A83: 170 | B83: 7.27 | C83: =B83*'PRC model'!$B$27+'PRC model'!$C$27 -> -2.094801647 | D83: 0.2142903517
A84: 190 | B84: 7.46 | C84: =B84*'PRC model'!$B$27+'PRC model'!$C$27 -> -2.155272577 | D84: 0.1892705389
A85: 198 | B85: 7.62 | C85: =B85*'PRC model'!$B$27+'PRC model'!$C$27 -> -2.206195465 | D85: 0.1702294646
A86: 203 | B86: 7.65 | C86: =B86*'PRC model'!$B$27+'PRC model'!$C$27 -> -2.215743507 | D86: 0.1668555821
A87: 196 | B87: 7.65 | C87: =B87*'PRC model'!$B$27+'PRC model'!$C$27 -> -2.215743507 | D87: 0.1668555821
A88: 195 | B88: 7.56 | C88: =B88*'PRC model'!$B$27+'PRC model'!$C$27 -> -2.187099382 | D88: 0.1771606356
A89: 194 | B89: 7.8 | C89: =B89*'PRC model'!$B$27+'PRC model'!$C$27 -> -2.263483715 | D89: 0.1508717986
A90: 209 | B90: 8.18 | C90: =B90*'PRC model'!$B$27+'PRC model'!$C$27 -> -2.384425575 | D90: 0.1164371778

Sheet Kow_fitting
A1: log(Kow) | B1: log(ke) | C1: log(RD) | D1: log(R )
A2: 4 | B2: ='PRC model'!$B$27*A2+'PRC model'!$C$27 -> -1.054065114 | C2: ='PRC model'!$B$31*A2+'PRC model'!$C$31 -> -2.645800357 | D2: ='PRC model'!$B$35*A2+'PRC model'!$C$35 -> 0.2497829282
A3: =A2+0.1 -> 4.1 | B3: ='PRC model'!$B$27*A3+'PRC model'!$C$27 -> -1.085891919 | C3: ='PRC model'!$B$31*A3+'PRC model'!$C$31 -> -2.532281879 | D3: ='PRC model'!$B$35*A3+'PRC model'!$C$35 -> 0.4281524507
A4: =A3+0.1 -> 4.2 | B4: ='PRC model'!$B$27*A4+'PRC model'!$C$27 -> -1.117718724 | C4: ='PRC model'!$B$31*A4+'PRC model'!$C$31 -> -2.418763401 | D4: ='PRC model'!$B$35*A4+'PRC model'!$C$35 -> 0.6065219732
A5: 4.3 | B5: ='PRC model'!$B$27*A5+'PRC model'!$C$27 -> -1.14954553 | C5: ='PRC model'!$B$31*A5+'PRC model'!$C$31 -> -2.305244924 | D5: ='PRC model'!$B$35*A5+'PRC model'!$C$35 -> 0.7848914958
A6: 4.4 | B6: ='PRC model'!$B$27*A6+'PRC model'!$C$27 -> -1.181372335 | C6: ='PRC model'!$B$31*A6+'PRC model'!$C$31 -> -2.191726446 | D6: ='PRC model'!$B$35*A6+'PRC model'!$C$35 -> 0.9632610183
A7: 4.5 | B7: ='PRC model'!$B$27*A7+'PRC model'!$C$27 -> -1.21319914 | C7: ='PRC model'!$B$31*A7+'PRC model'!$C$31 -> -2.078207968 | D7: ='PRC model'!$B$35*A7+'PRC model'!$C$35 -> 1.141630541
A8: 4.6 | B8: ='PRC model'!$B$27*A8+'PRC model'!$C$27 -> -1.245025945 | C8: ='PRC model'!$B$31*A8+'PRC model'!$C$31 -> -1.96468949 | D8: ='PRC model'!$B$35*A8+'PRC model'!$C$35 -> 1.320000063
A9: 4.7 | B9: ='PRC model'!$B$27*A9+'PRC model'!$C$27 -> -1.276852751 | C9: ='PRC model'!$B$31*A9+'PRC model'!$C$31 -> -1.851171012 | D9: ='PRC model'!$B$35*A9+'PRC model'!$C$35 -> 1.498369586
A10: 4.8 | B10: ='PRC model'!$B$27*A10+'PRC model'!$C$27 -> -1.308679556 | C10: ='PRC model'!$B$31*A10+'PRC model'!$C$31 -> -1.737652534 | D10: ='PRC model'!$B$35*A10+'PRC model'!$C$35 -> 1.676739108
A11: 4.9 | B11: ='PRC model'!$B$27*A11+'PRC model'!$C$27 -> -1.340506361 | C11: ='PRC model'!$B$31*A11+'PRC model'!$C$31 -> -1.624134056 | D11: ='PRC model'!$B$35*A11+'PRC model'!$C$35 -> 1.855108631
A12: 5 | B12: ='PRC model'!$B$27*A12+'PRC model'!$C$27 -> -1.372333167 | C12: ='PRC model'!$B$31*A12+'PRC model'!$C$31 -> -1.510615578 | D12: ='PRC model'!$B$35*A12+'PRC model'!$C$35 -> 2.033478153
A13: 5.1 | B13: ='PRC model'!$B$27*A13+'PRC model'!$C$27 -> -1.404159972 | C13: ='PRC model'!$B$31*A13+'PRC model'!$C$31 -> -1.3970971 | D13: ='PRC model'!$B$35*A13+'PRC model'!$C$35 -> 2.211847676
A14: 5.2 | B14: ='PRC model'!$B$27*A14+'PRC model'!$C$27 -> -1.435986777 | C14: ='PRC model'!$B$31*A14+'PRC model'!$C$31 -> -1.283578622 | D14: ='PRC model'!$B$35*A14+'PRC model'!$C$35 -> 2.390217198
A15: 5.3 | B15: ='PRC model'!$B$27*A15+'PRC model'!$C$27 -> -1.467813583 | C15: ='PRC model'!$B$31*A15+'PRC model'!$C$31 -> -1.170060144 | D15: ='PRC model'!$B$35*A15+'PRC model'!$C$35 -> 2.568586721
A16: 5.4 | B16: ='PRC model'!$B$27*A16+'PRC model'!$C$27 -> -1.499640388 | C16: ='PRC model'!$B$31*A16+'PRC model'!$C$31 -> -1.056541666 | D16: ='PRC model'!$B$35*A16+'PRC model'!$C$35 -> 2.746956244
A17: 5.5 | B17: ='PRC model'!$B$27*A17+'PRC model'!$C$27 -> -1.531467193 | C17: ='PRC model'!$B$31*A17+'PRC model'!$C$31 -> -0.9430231879 | D17: ='PRC model'!$B$35*A17+'PRC model'!$C$35 -> 2.925325766
A18: 5.6 | B18: ='PRC model'!$B$27*A18+'PRC model'!$C$27 -> -1.563293998 | C18: ='PRC model'!$B$31*A18+'PRC model'!$C$31 -> -0.8295047099 | D18: ='PRC model'!$B$35*A18+'PRC model'!$C$35 -> 3.103695289
A19: 5.7 | B19: ='PRC model'!$B$27*A19+'PRC model'!$C$27 -> -1.595120804 | C19: ='PRC model'!$B$31*A19+'PRC model'!$C$31 -> -0.715986232 | D19: ='PRC model'!$B$35*A19+'PRC model'!$C$35 -> 3.282064811
A20: 5.8 | B20: ='PRC model'!$B$27*A20+'PRC model'!$C$27 -> -1.626947609 | C20: ='PRC model'!$B$31*A20+'PRC model'!$C$31 -> -0.602467754 | D20: ='PRC model'!$B$35*A20+'PRC model'!$C$35 -> 3.460434334
A21: 5.9 | B21: ='PRC model'!$B$27*A21+'PRC model'!$C$27 -> -1.658774414 | C21: ='PRC model'!$B$31*A21+'PRC model'!$C$31 -> -0.488949276 | D21: ='PRC model'!$B$35*A21+'PRC model'!$C$35 -> 3.638803856
A22: 6 | B22: ='PRC model'!$B$27*A22+'PRC model'!$C$27 -> -1.69060122 | C22: ='PRC model'!$B$31*A22+'PRC model'!$C$31 -> -0.3754307981 | D22: ='PRC model'!$B$35*A22+'PRC model'!$C$35 -> 3.817173379
A23: 6.1 | B23: ='PRC model'!$B$27*A23+'PRC model'!$C$27 -> -1.722428025 | C23: ='PRC model'!$B$31*A23+'PRC model'!$C$31 -> -0.2619123201 | D23: ='PRC model'!$B$35*A23+'PRC model'!$C$35 -> 3.995542901
A24: 6.2 | B24: ='PRC model'!$B$27*A24+'PRC model'!$C$27 -> -1.75425483 | C24: ='PRC model'!$B$31*A24+'PRC model'!$C$31 -> -0.1483938421 | D24: ='PRC model'!$B$35*A24+'PRC model'!$C$35 -> 4.173912424
A25: 6.3 | B25: ='PRC model'!$B$27*A25+'PRC model'!$C$27 -> -1.786081635 | C25: ='PRC model'!$B$31*A25+'PRC model'!$C$31 -> -0.03487536415 | D25: ='PRC model'!$B$35*A25+'PRC model'!$C$35 -> 4.352281946
A26: 6.4 | B26: ='PRC model'!$B$27*A26+'PRC model'!$C$27 -> -1.817908441 | C26: ='PRC model'!$B$31*A26+'PRC model'!$C$31 -> 0.07864311381 | D26: ='PRC model'!$B$35*A26+'PRC model'!$C$35 -> 4.530651469
A27: 6.5 | B27: ='PRC model'!$B$27*A27+'PRC model'!$C$27 -> -1.849735246 | C27: ='PRC model'!$B$31*A27+'PRC model'!$C$31 -> 0.1921615918 | D27: ='PRC model'!$B$35*A27+'PRC model'!$C$35 -> 4.709020991
A28: 6.6 | B28: ='PRC model'!$B$27*A28+'PRC model'!$C$27 -> -1.881562051 | C28: ='PRC model'!$B$31*A28+'PRC model'!$C$31 -> 0.3056800698 | D28: ='PRC model'!$B$35*A28+'PRC model'!$C$35 -> 4.887390514
A29: 6.7 | B29: ='PRC model'!$B$27*A29+'PRC model'!$C$27 -> -1.913388857 | C29: ='PRC model'!$B$31*A29+'PRC model'!$C$31 -> 0.4191985477 | D29: ='PRC model'!$B$35*A29+'PRC model'!$C$35 -> 5.065760036
A30: 6.8 | B30: ='PRC model'!$B$27*A30+'PRC model'!$C$27 -> -1.945215662 | C30: ='PRC model'!$B$31*A30+'PRC model'!$C$31 -> 0.5327170257 | D30: ='PRC model'!$B$35*A30+'PRC model'!$C$35 -> 5.244129559
A31: 6.9 | B31: ='PRC model'!$B$27*A31+'PRC model'!$C$27 -> -1.977042467 | C31: ='PRC model'!$B$31*A31+'PRC model'!$C$31 -> 0.6462355037 | D31: ='PRC model'!$B$35*A31+'PRC model'!$C$35 -> 5.422499081
A32: 7 | B32: ='PRC model'!$B$27*A32+'PRC model'!$C$27 -> -2.008869273 | C32: ='PRC model'!$B$31*A32+'PRC model'!$C$31 -> 0.7597539816 | D32: ='PRC model'!$B$35*A32+'PRC model'!$C$35 -> 5.600868604
A33: 7.1 | B33: ='PRC model'!$B$27*A33+'PRC model'!$C$27 -> -2.040696078 | C33: ='PRC model'!$B$31*A33+'PRC model'!$C$31 -> 0.8732724596 | D33: ='PRC model'!$B$35*A33+'PRC model'!$C$35 -> 5.779238126
A34: 7.2 | B34: ='PRC model'!$B$27*A34+'PRC model'!$C$27 -> -2.072522883 | C34: ='PRC model'!$B$31*A34+'PRC model'!$C$31 -> 0.9867909376 | D34: ='PRC model'!$B$35*A34+'PRC model'!$C$35 -> 5.957607649
A35: 7.3 | B35: ='PRC model'!$B$27*A35+'PRC model'!$C$27 -> -2.104349688 | C35: ='PRC model'!$B$31*A35+'PRC model'!$C$31 -> 1.100309416 | D35: ='PRC model'!$B$35*A35+'PRC model'!$C$35 -> 6.135977172
A36: 7.4 | B36: ='PRC model'!$B$27*A36+'PRC model'!$C$27 -> -2.136176494 | C36: ='PRC model'!$B$31*A36+'PRC model'!$C$31 -> 1.213827893 | D36: ='PRC model'!$B$35*A36+'PRC model'!$C$35 -> 6.314346694
A37: 7.5 | B37: ='PRC model'!$B$27*A37+'PRC model'!$C$27 -> -2.168003299 | C37: ='PRC model'!$B$31*A37+'PRC model'!$C$31 -> 1.327346371 | D37: ='PRC model'!$B$35*A37+'PRC model'!$C$35 -> 6.492716217
A38: 7.6 | B38: ='PRC model'!$B$27*A38+'PRC model'!$C$27 -> -2.199830104 | C38: ='PRC model'!$B$31*A38+'PRC model'!$C$31 -> 1.440864849 | D38: ='PRC model'!$B$35*A38+'PRC model'!$C$35 -> 6.671085739
A39: 7.7 | B39: ='PRC model'!$B$27*A39+'PRC model'!$C$27 -> -2.23165691 | C39: ='PRC model'!$B$31*A39+'PRC model'!$C$31 -> 1.554383327 | D39: ='PRC model'!$B$35*A39+'PRC model'!$C$35 -> 6.849455262
A40: 7.8 | B40: ='PRC model'!$B$27*A40+'PRC model'!$C$27 -> -2.263483715 | C40: ='PRC model'!$B$31*A40+'PRC model'!$C$31 -> 1.667901805 | D40: ='PRC model'!$B$35*A40+'PRC model'!$C$35 -> 7.027824784
A41: 7.9 | B41: ='PRC model'!$B$27*A41+'PRC model'!$C$27 -> -2.29531052 | C41: ='PRC model'!$B$31*A41+'PRC model'!$C$31 -> 1.781420283 | D41: ='PRC model'!$B$35*A41+'PRC model'!$C$35 -> 7.206194307
A42: 8 | B42: ='PRC model'!$B$27*A42+'PRC model'!$C$27 -> -2.327137325 | C42: ='PRC model'!$B$31*A42+'PRC model'!$C$31 -> 1.894938761 | D42: ='PRC model'!$B$35*A42+'PRC model'!$C$35 -> 7.384563829
A43: 8.1 | B43: ='PRC model'!$B$27*A43+'PRC model'!$C$27 -> -2.358964131 | C43: ='PRC model'!$B$31*A43+'PRC model'!$C$31 -> 2.008457239 | D43: ='PRC model'!$B$35*A43+'PRC model'!$C$35 -> 7.562933352
A44: 8.2 | B44: ='PRC model'!$B$27*A44+'PRC model'!$C$27 -> -2.390790936 | C44: ='PRC model'!$B$31*A44+'PRC model'!$C$31 -> 2.121975717 | D44: ='PRC model'!$B$35*A44+'PRC model'!$C$35 -> 7.741302874
A45: 8.3 | B45: ='PRC model'!$B$27*A45+'PRC model'!$C$27 -> -2.422617741 | C45: ='PRC model'!$B$31*A45+'PRC model'!$C$31 -> 2.235494195 | D45: ='PRC model'!$B$35*A45+'PRC model'!$C$35 -> 7.919672397
A46: 8.4 | B46: ='PRC model'!$B$27*A46+'PRC model'!$C$27 -> -2.454444547 | C46: ='PRC model'!$B$31*A46+'PRC model'!$C$31 -> 2.349012673 | D46: ='PRC model'!$B$35*A46+'PRC model'!$C$35 -> 8.098041919
A47: 8.5 | B47: ='PRC model'!$B$27*A47+'PRC model'!$C$27 -> -2.486271352 | C47: ='PRC model'!$B$31*A47+'PRC model'!$C$31 -> 2.462531151 | D47: ='PRC model'!$B$35*A47+'PRC model'!$C$35 -> 8.276411442
A48: 8.6 | B48: ='PRC model'!$B$27*A48+'PRC model'!$C$27 -> -2.518098157 | C48: ='PRC model'!$B$31*A48+'PRC model'!$C$31 -> 2.576049629 | D48: ='PRC model'!$B$35*A48+'PRC model'!$C$35 -> 8.454780964
A49: 8.7 | B49: ='PRC model'!$B$27*A49+'PRC model'!$C$27 -> -2.549924962 | C49: ='PRC model'!$B$31*A49+'PRC model'!$C$31 -> 2.689568107 | D49: ='PRC model'!$B$35*A49+'PRC model'!$C$35 -> 8.633150487
A50: 8.8 | B50: ='PRC model'!$B$27*A50+'PRC model'!$C$27 -> -2.581751768 | C50: ='PRC model'!$B$31*A50+'PRC model'!$C$31 -> 2.803086585 | D50: ='PRC model'!$B$35*A50+'PRC model'!$C$35 -> 8.811520009
A51: 8.9 | B51: ='PRC model'!$B$27*A51+'PRC model'!$C$27 -> -2.613578573 | C51: ='PRC model'!$B$31*A51+'PRC model'!$C$31 -> 2.916605063 | D51: ='PRC model'!$B$35*A51+'PRC model'!$C$35 -> 8.989889532
A52: 9 | B52: ='PRC model'!$B$27*A52+'PRC model'!$C$27 -> -2.645405378 | C52: ='PRC model'!$B$31*A52+'PRC model'!$C$31 -> 3.030123541 | D52: ='PRC model'!$B$35*A52+'PRC model'!$C$35 -> 9.168259054
A53: 9.1 | B53: ='PRC model'!$B$27*A53+'PRC model'!$C$27 -> -2.677232184 | C53: ='PRC model'!$B$31*A53+'PRC model'!$C$31 -> 3.143642019 | D53: ='PRC model'!$B$35*A53+'PRC model'!$C$35 -> 9.346628577
A54: 9.2 | B54: ='PRC model'!$B$27*A54+'PRC model'!$C$27 -> -2.709058989 | C54: ='PRC model'!$B$31*A54+'PRC model'!$C$31 -> 3.257160497 | D54: ='PRC model'!$B$35*A54+'PRC model'!$C$35 -> 9.5249981
A55: 9.3 | B55: ='PRC model'!$B$27*A55+'PRC model'!$C$27 -> -2.740885794 | C55: ='PRC model'!$B$31*A55+'PRC model'!$C$31 -> 3.370678975 | D55: ='PRC model'!$B$35*A55+'PRC model'!$C$35 -> 9.703367622
A56: 9.4 | B56: ='PRC model'!$B$27*A56+'PRC model'!$C$27 -> -2.7727126 | C56: ='PRC model'!$B$31*A56+'PRC model'!$C$31 -> 3.484197453 | D56: ='PRC model'!$B$35*A56+'PRC model'!$C$35 -> 9.881737145
A57: 9.5 | B57: ='PRC model'!$B$27*A57+'PRC model'!$C$27 -> -2.804539405 | C57: ='PRC model'!$B$31*A57+'PRC model'!$C$31 -> 3.597715931 | D57: ='PRC model'!$B$35*A57+'PRC model'!$C$35 -> 10.06010667
A58: 9.6 | B58: ='PRC model'!$B$27*A58+'PRC model'!$C$27 -> -2.83636621 | C58: ='PRC model'!$B$31*A58+'PRC model'!$C$31 -> 3.711234409 | D58: ='PRC model'!$B$35*A58+'PRC model'!$C$35 -> 10.23847619
A59: 9.7 | B59: ='PRC model'!$B$27*A59+'PRC model'!$C$27 -> -2.868193015 | C59: ='PRC model'!$B$31*A59+'PRC model'!$C$31 -> 3.824752887 | D59: ='PRC model'!$B$35*A59+'PRC model'!$C$35 -> 10.41684571
A60: 9.8 | B60: ='PRC model'!$B$27*A60+'PRC model'!$C$27 -> -2.900019821 | C60: ='PRC model'!$B$31*A60+'PRC model'!$C$31 -> 3.938271365 | D60: ='PRC model'!$B$35*A60+'PRC model'!$C$35 -> 10.59521523
A61: 9.9 | B61: ='PRC model'!$B$27*A61+'PRC model'!$C$27 -> -2.931846626 | C61: ='PRC model'!$B$31*A61+'PRC model'!$C$31 -> 4.051789843 | D61: ='PRC model'!$B$35*A61+'PRC model'!$C$35 -> 10.77358476
A62: 10 | B62: ='PRC model'!$B$27*A62+'PRC model'!$C$27 -> -2.963673431 | C62: ='PRC model'!$B$31*A62+'PRC model'!$C$31 -> 4.165308321 | D62: ='PRC model'!$B$35*A62+'PRC model'!$C$35 -> 10.95195428
